Workbook

Sheet INGRESO DE DATOS
B7: COTIZACIÓN DE SEGURO MÉDICO INTERNACIONAL
A10: INGRESE LOS DATOS DEL PROPUESTO ASEGURADO:
C12: Nombre del Asegurado Principal: | D12: Nombre
D14: Número de Adultos: | G14: 2 | H14: Número de Hijos: | J14: 2
F16: Edad de Titular: | G16: 32 | H16: Edad de Cónyuge: | J16: 46
F18: Descuento: | G18: 0
A21: INGRESE EL NOMBRE DE LA AGENCIA ASESORA:
C23: Intermediario: | D23: Agente / Agencia
A27: ESCOJA EL PRODUCTO PARA VISUALIZAR LA COTIZACION RESPECTIVA:

Sheet Complete
D8: Cotización de Seguro Médico Internacional
D9: Producto: Bupa Complete Care
A10: BUPA COMPLETE CARE
D12: Nombre del Asegurado: | E12: =+'INGRESO DE DATOS'!$D$12 -> Nombre
D14: Intermediario: | E14: =+'INGRESO DE DATOS'!$D$23 -> Agente / Agencia
D16: Fecha: | E16: =+TODAY() -> 2022-12-20 | G16: =IF('INGRESO DE DATOS'!G18>0,"Descuento","") ->  | H16: =IF('INGRESO DE DATOS'!G18>0,'INGRESO DE DATOS'!G18,"") -> 
F18: Numero de Adultos: | G18: =+'INGRESO DE DATOS'!G14 -> 2 | I18: Edad de Titular: | J18: =+'INGRESO DE DATOS'!$G$16 -> 32
F20: Numero de Hijos: | G20: =+'INGRESO DE DATOS'!$J$14 -> 2 | I20: Edad de Conyuge: | J20: =+'INGRESO DE DATOS'!$J$16 -> 46
H22: Complicaciones de Maternidad (+ $500,000)
H23: FALSE
D24: Deducibles
E25: PLAN 1 | F25: PLAN 2 | G25: PLAN 3 | H25: PLAN 4 | I25: PLAN 5 | J25: PLAN 6
D26: Dentro del pais de residencia | E26: n/a | F26: 1000 | G26: 2000 | H26: 5000 | I26: 10000 | J26: 20000
D27: Fuera del pais de residencia | E27: n/a | F27: 2000 | G27: 3000 | H27: 5000 | I27: 10000 | J27: 20000
D29: Tarifas Anuales
D30: Prima Titular | E30: n/a | F30: =VLOOKUP($J$18,Tablas!$A$6:$H$29,4,TRUE) -> 13182 | G30: =VLOOKUP($J$18,Tablas!$A$6:$H$29,5,TRUE) -> 9802 | H30: =VLOOKUP($J$18,Tablas!$A$6:$H$29,6,TRUE) -> 7149 | I30: =VLOOKUP($J$18,Tablas!$A$6:$H$29,7,TRUE) -> 5322 | J30: =VLOOKUP($J$18,Tablas!$A$6:$H$29,8,TRUE) -> 4071
D31: Prima Cónyuge | E31: n/a | F31: =IF($G$18=1,0,(VLOOKUP($J$20,Tablas!$A$6:$H$29,4,TRUE))) -> 19113 | G31: =IF($G$18=1,0,(VLOOKUP($J$20,Tablas!$A$6:$H$29,5,TRUE))) -> 13428 | H31: =IF($G$18=1,0,(VLOOKUP($J$20,Tablas!$A$6:$H$29,6,TRUE))) -> 9954 | I31: =IF($G$18=1,0,(VLOOKUP($J$20,Tablas!$A$6:$H$29,7,TRUE))) -> 7353 | J31: =IF($G$18=1,0,(VLOOKUP($J$20,Tablas!$A$6:$H$29,8,TRUE))) -> 5632
D32: Primas Hijos | E32: n/a | F32: =IF($G$20=0,0,(VLOOKUP($G$20,Tablas!$A$30:$H$32,4,TRUE))) -> 6674 | G32: =IF($G$20=0,0,(VLOOKUP($G$20,Tablas!$A$30:$H$32,5,TRUE))) -> 4862 | H32: =IF($G$20=0,0,(VLOOKUP($G$20,Tablas!$A$30:$H$32,6,TRUE))) -> 3698 | I32: =IF($G$20=0,0,(VLOOKUP($G$20,Tablas!$A$30:$H$32,7,TRUE))) -> 3051 | J32: =IF($G$20=0,0,(VLOOKUP($G$20,Tablas!$A$30:$H$32,8,TRUE))) -> 2272
D33: Anexo: Complicaciones de Maternidad | E33: n/a | F33: =+IF($H$23=FALSE,0,Tablas!D$33) -> 0 | G33: =+IF($H$23=FALSE,0,Tablas!E$33) -> 0 | H33: =+IF($H$23=FALSE,0,Tablas!F$33) -> 0 | I33: =+IF($H$23=FALSE,0,Tablas!G$33) -> 0 | J33: =+IF($H$23=FALSE,0,Tablas!H$33) -> 0
D34: PRIMA NETA | E34: n/a | F34: =SUM(F30:F33) -> 38969 | G34: =SUM(G30:G33) -> 28092 | H34: =SUM(H30:H33) -> 20801 | I34: =SUM(I30:I33) -> 15726 | J34: =SUM(J30:J33) -> 11975
D35: =IF('INGRESO DE DATOS'!G18>0,"Descuento","") ->  | E35: n/a | F35: =IF('INGRESO DE DATOS'!$G$18>0,-(F30+F31+F32)*'INGRESO DE DATOS'!$G$18,0) -> 0 | G35: =IF('INGRESO DE DATOS'!$G$18>0,-(G30+G31+G32)*'INGRESO DE DATOS'!$G$18,0) -> 0 | H35: =IF('INGRESO DE DATOS'!$G$18>0,-(H30+H31+H32)*'INGRESO DE DATOS'!$G$18,0) -> 0 | I35: =IF('INGRESO DE DATOS'!$G$18>0,-(I30+I31+I32)*'INGRESO DE DATOS'!$G$18,0) -> 0 | J35: =IF('INGRESO DE DATOS'!$G$18>0,-(J30+J31+J32)*'INGRESO DE DATOS'!$G$18,0) -> 0
D36: Costo Administrativo Anual | E36: n/a | F36: 75 | G36: 75 | H36: 75 | I36: 75 | J36: 75
D37: IVA (12%) | E37: n/a | F37: =+(F34+F35+F36)*12% -> 4685.28 | G37: =+(G34+G35+G36)*12% -> 3380.04 | H37: 2505.12 | I37: 1896.12 | J37: =+(J34+J35+J36)*12% -> 1446
D38: TOTAL | E38: n/a | F38: =SUM(F34:F37) -> 43729.28 | G38: =SUM(G34:G37) -> 31547.04 | H38: 23381.12 | I38: 17697.12 | J38: =SUM(J34:J37) -> 13496
D40: Tarifas Semestrales
D41: Prima Titular | E41: n/a | F41: =VLOOKUP($J$18,Tablas!$A$39:$H$62,4,TRUE) -> 6986.46 | G41: =VLOOKUP($J$18,Tablas!$A$39:$H$62,5,TRUE) -> 5195.06 | H41: =VLOOKUP($J$18,Tablas!$A$39:$H$62,6,TRUE) -> 3788.97 | I41: =VLOOKUP($J$18,Tablas!$A$39:$H$62,7,TRUE) -> 2820.66 | J41: =VLOOKUP($J$18,Tablas!$A$39:$H$62,8,TRUE) -> 2157.63
D42: Prima Cónyuge | E42: n/a | F42: =IF($G$18=1,0,(VLOOKUP($J$20,Tablas!$A$39:$H$62,4,TRUE))) -> 10129.89 | G42: =IF($G$18=1,0,(VLOOKUP($J$20,Tablas!$A$39:$H$62,5,TRUE))) -> 7116.84 | H42: =IF($G$18=1,0,(VLOOKUP($J$20,Tablas!$A$39:$H$62,6,TRUE))) -> 5275.62 | I42: =IF($G$18=1,0,(VLOOKUP($J$20,Tablas!$A$39:$H$62,7,TRUE))) -> 3897.09 | J42: =IF($G$18=1,0,(VLOOKUP($J$20,Tablas!$A$39:$H$62,8,TRUE))) -> 2984.96
D43: Primas Hijos | E43: n/a | F43: =IF($G$20=0,0,(VLOOKUP($G$20,Tablas!$A$63:$H$65,4,TRUE))) -> 3537.22 | G43: =IF($G$20=0,0,(VLOOKUP($G$20,Tablas!$A$63:$H$65,5,TRUE))) -> 2576.86 | H43: =IF($G$20=0,0,(VLOOKUP($G$20,Tablas!$A$63:$H$65,6,TRUE))) -> 1959.94 | I43: =IF($G$20=0,0,(VLOOKUP($G$20,Tablas!$A$63:$H$65,7,TRUE))) -> 1617.03 | J43: =IF($G$20=0,0,(VLOOKUP($G$20,Tablas!$A$63:$H$65,8,TRUE))) -> 1204.16
D44: Anexo: Complicaciones de Maternidad | E44: n/a | F44: =+IF($F$23=FALSE,0,Tablas!D$66) -> 0 | G44: =+IF($F$23=FALSE,0,Tablas!E$66) -> 0 | H44: =+IF($F$23=FALSE,0,Tablas!F$66) -> 0 | I44: =+IF($F$23=FALSE,0,Tablas!G$66) -> 0 | J44: =+IF($F$23=FALSE,0,Tablas!H$66) -> 0
D45: PRIMA NETA | E45: n/a | F45: =SUM(F41:F44) -> 20653.57 | G45: =SUM(G41:G44) -> 14888.76 | H45: =SUM(H41:H44) -> 11024.53 | I45: =SUM(I41:I44) -> 8334.78 | J45: =SUM(J41:J44) -> 6346.75
D46: =IF('INGRESO DE DATOS'!G18>0,"Descuento","") ->  | E46: n/a | F46: =IF('INGRESO DE DATOS'!$G$18>0,-(F41+F42+F43)*'INGRESO DE DATOS'!$G$18,0) -> 0 | G46: =IF('INGRESO DE DATOS'!$G$18>0,-(G41+G42+G43)*'INGRESO DE DATOS'!$G$18,0) -> 0 | H46: =IF('INGRESO DE DATOS'!$G$18>0,-(H41+H42+H43)*'INGRESO DE DATOS'!$G$18,0) -> 0 | I46: =IF('INGRESO DE DATOS'!$G$18>0,-(I41+I42+I43)*'INGRESO DE DATOS'!$G$18,0) -> 0 | J46: =IF('INGRESO DE DATOS'!$G$18>0,-(J41+J42+J43)*'INGRESO DE DATOS'!$G$18,0) -> 0
D47: Costo Administrativo Anual | E47: n/a | F47: 75 | G47: 75 | H47: 75 | I47: 75 | J47: 75
D48: IVA (12%) | E48: n/a | F48: =+(F45+F46+F47)*12% -> 2487.4284 | G48: =+(G45+G46+G47)*12% -> 1795.6512 | H48: 1331.9436 | I48: 1009.1736 | J48: =+(J45+J46+J47)*12% -> 770.61
D49: TOTAL (1ra Cuota) | E49: n/a | F49: =SUM(F45:F48) -> 23215.9984 | G49: =SUM(G45:G48) -> 16759.4112 | H49: =SUM(H45:H48) -> 12431.4736 | I49: =SUM(I45:I48) -> 9418.9536 | J49: =SUM(J45:J48) -> 7192.36
D50: TOTAL (2da Cuota) | E50: n/a | F50: =F45+F46+F48-(F47*0.12) -> 23131.9984 | G50: =G45+G46+G48-(G47*0.12) -> 16675.4112 | H50: 12347.4736 | I50: 9334.9536 | J50: =J45+J46+J48-(J47*0.12) -> 7108.36
D52: Tarifas Semestrales
D53: Prima Titular | E53: n/a | F53: =VLOOKUP($J$18,Tablas!$A$923:$H$946,4,TRUE) -> 3625.05 | G53: =VLOOKUP($J$18,Tablas!$A$923:$H$946,5,TRUE) -> 2695.55 | H53: =VLOOKUP($J$18,Tablas!$A$923:$H$946,6,TRUE) -> 1965.975 | I53: =VLOOKUP($J$18,Tablas!$A$923:$H$946,7,TRUE) -> 1463.55 | J53: =VLOOKUP($J$18,Tablas!$A$923:$H$946,8,TRUE) -> 1119.525
D54: Prima Cónyuge | E54: n/a | F54: =IF($G$18=1,0,(VLOOKUP($J$20,Tablas!$A$923:$H$946,4,TRUE))) -> 5256.075 | G54: =IF($G$18=1,0,(VLOOKUP($J$20,Tablas!$A$923:$H$946,5,TRUE))) -> 3692.7 | H54: =IF($G$18=1,0,(VLOOKUP($J$20,Tablas!$A$923:$H$946,6,TRUE))) -> 2737.35 | I54: =IF($G$18=1,0,(VLOOKUP($J$20,Tablas!$A$923:$H$946,7,TRUE))) -> 2022.075 | J54: =IF($G$18=1,0,(VLOOKUP($J$20,Tablas!$A$923:$H$946,8,TRUE))) -> 1548.8
D55: Primas Hijos | E55: n/a | F55: =IF($G$20=0,0,(VLOOKUP($G$20,Tablas!$A$947:$H$949,4,TRUE))) -> 1835.35 | G55: =IF($G$20=0,0,(VLOOKUP($G$20,Tablas!$A$63:$H$65,5,TRUE))) -> 2576.86 | H55: =IF($G$20=0,0,(VLOOKUP($G$20,Tablas!$A$63:$H$65,6,TRUE))) -> 1959.94 | I55: =IF($G$20=0,0,(VLOOKUP($G$20,Tablas!$A$63:$H$65,7,TRUE))) -> 1617.03 | J55: =IF($G$20=0,0,(VLOOKUP($G$20,Tablas!$A$63:$H$65,8,TRUE))) -> 1204.16
D56: Anexo: Complicaciones de Maternidad | E56: n/a | F56: =+IF($F$23=FALSE,0,Tablas!D$950) -> 0 | G56: =+IF($F$23=FALSE,0,Tablas!E$950) -> 0 | H56: =+IF($F$23=FALSE,0,Tablas!F$950) -> 0 | I56: =+IF($F$23=FALSE,0,Tablas!G$950) -> 0 | J56: =+IF($F$23=FALSE,0,Tablas!H$950) -> 0
D57: PRIMA NETA | E57: n/a | F57: =SUM(F53:F56) -> 10716.475 | G57: =SUM(G53:G56) -> 8965.11 | H57: =SUM(H53:H56) -> 6663.265 | I57: =SUM(I53:I56) -> 5102.655 | J57: =SUM(J53:J56) -> 3872.485
D58: =IF('INGRESO DE DATOS'!G32>0,"Descuento","") ->  | E58: n/a | F58: =IF('INGRESO DE DATOS'!$G$18>0,-(F53+F54+F55)*'INGRESO DE DATOS'!$G$18,0) -> 0 | G58: =IF('INGRESO DE DATOS'!$G$18>0,-(G53+G54+G55)*'INGRESO DE DATOS'!$G$18,0) -> 0 | H58: =IF('INGRESO DE DATOS'!$G$18>0,-(H53+H54+H55)*'INGRESO DE DATOS'!$G$18,0) -> 0 | I58: =IF('INGRESO DE DATOS'!$G$18>0,-(I53+I54+I55)*'INGRESO DE DATOS'!$G$18,0) -> 0 | J58: =IF('INGRESO DE DATOS'!$G$18>0,-(J53+J54+J55)*'INGRESO DE DATOS'!$G$18,0) -> 0
D59: Costo Administrativo Anual | E59: n/a | F59: 75 | G59: 75 | H59: 75 | I59: 75 | J59: 75
D60: IVA (12%) | E60: n/a | F60: =+(F57+F58+F59)*12% -> 1294.977 | G60: =+(G57+G58+G59)*12% -> 1084.8132 | H60: 808.5918 | I60: 621.3186 | J60: =+(J57+J58+J59)*12% -> 473.6982
D61: TOTAL (1ra Cuota) | E61: n/a | F61: =SUM(F57:F60) -> 12086.452 | G61: =SUM(G57:G60) -> 10124.9232 | H61: =SUM(H57:H60) -> 7546.8568 | I61: =SUM(I57:I60) -> 5798.9736 | J61: =SUM(J57:J60) -> 4421.1832
D62: TOTAL (2da a 4ta Cuota) | E62: n/a | F62: =F57+F58+F60-(F59*0.12) -> 12002.452 | G62: =G57+G58+G60-(G59*0.12) -> 10040.9232 | H62: 7462.8568 | I62: 5714.9736 | J62: =J57+J58+J60-(J59*0.12) -> 4337.1832
D64: Tarifas en US $ - Válidas desde 01 Ene 2023
D65: Este presupuesto solamente tiene carácter informativo y en ningún momento expresa compromiso legal para suministrarle cobertura de seguro. La emisión de una póliza de seguro Bupa está sujeta a todas las evaluaciones de riesgo por parte de Bupa y a la recepción de todos los pagos de prima requeridos.

Sheet Secure
D8: Cotización de Seguro Médico Internacional
D9: Producto: Bupa Secure Care
A10: BUPA SECURE CARE
D12: Nombre del Asegurado: | E12: =+'INGRESO DE DATOS'!$D$12 -> Nombre
D14: Intermediario: | E14: =+'INGRESO DE DATOS'!$D$23 -> Agente / Agencia
D16: Fecha: | E16: =+TODAY() -> 2022-12-20 | G16: =IF('INGRESO DE DATOS'!G18>0,"Descuento","") ->  | H16: =IF('INGRESO DE DATOS'!G18>0,'INGRESO DE DATOS'!G18,"") -> 
F18: Numero de Adultos: | G18: =+'INGRESO DE DATOS'!$G$14 -> 2 | I18: Edad de Titular: | J18: =+'INGRESO DE DATOS'!$G$16 -> 32
F20: Numero de Hijos: | G20: =+'INGRESO DE DATOS'!$J$14 -> 2 | I20: Edad de Conyuge: | J20: =+'INGRESO DE DATOS'!$J$16 -> 46
F22: TRUE | H22: Complicaciones de Maternidad (+ $500,000)
F24: TRUE | G24: FALSE | H24: Trasplante de Órganos (+ $500,000)
D26: Deducibles
E27: PLAN 1 | F27: PLAN 2 | G27: PLAN 3 | H27: PLAN 4 | I27: PLAN 5 | J27: PLAN 6
D28: Dentro del pais de residencia | E28: n/a | F28: 1000 | G28: 2000 | H28: 5000 | I28: 10000 | J28: 20000
D29: Fuera del pais de residencia | E29: n/a | F29: 2000 | G29: 3000 | H29: 5000 | I29: 10000 | J29: 20000
D31: Tarifas Anuales
D32: Prima Titular | E32: n/a | F32: =VLOOKUP($J$18,Tablas!$A$140:$H$163,4,TRUE) -> 7419 | G32: =VLOOKUP($J$18,Tablas!$A$140:$H$163,5,TRUE) -> 6076 | H32: =VLOOKUP($J$18,Tablas!$A$140:$H$163,6,TRUE) -> 4490 | I32: =VLOOKUP($J$18,Tablas!$A$140:$H$163,7,TRUE) -> 3766 | J32: =VLOOKUP($J$18,Tablas!$A$140:$H$163,8,TRUE) -> 2859
D33: Prima Cónyuge | E33: n/a | F33: =IF($G$18=1,0,(VLOOKUP($J$20,Tablas!$A$140:$H$163,4,TRUE))) -> 10552 | G33: =IF($G$18=1,0,(VLOOKUP($J$20,Tablas!$A$140:$H$163,5,TRUE))) -> 9142 | H33: =IF($G$18=1,0,(VLOOKUP($J$20,Tablas!$A$140:$H$163,6,TRUE))) -> 6548 | I33: =IF($G$18=1,0,(VLOOKUP($J$20,Tablas!$A$140:$H$163,7,TRUE))) -> 5530 | J33: =IF($G$18=1,0,(VLOOKUP($J$20,Tablas!$A$140:$H$163,8,TRUE))) -> 4132
D34: Primas Hijos | E34: n/a | F34: =IF($G$20=0,0,(VLOOKUP($G$20,Tablas!$A$164:$H$166,4,TRUE))) -> 4798 | G34: =IF($G$20=0,0,(VLOOKUP($G$20,Tablas!$A$164:$H$166,5,TRUE))) -> 2499 | H34: =IF($G$20=0,0,(VLOOKUP($G$20,Tablas!$A$164:$H$166,6,TRUE))) -> 2184 | I34: =IF($G$20=0,0,(VLOOKUP($G$20,Tablas!$A$164:$H$166,7,TRUE))) -> 1824 | J34: =IF($G$20=0,0,(VLOOKUP($G$20,Tablas!$A$164:$H$166,8,TRUE))) -> 1338
D35: Anexo: Complicaciones de Maternidad | E35: n/a | F35: =+IF($F$22=FALSE,0,Tablas!D$167) -> 225 | G35: =+IF($F$22=FALSE,0,Tablas!E$167) -> 225 | H35: =+IF($F$22=FALSE,0,Tablas!F$167) -> 225 | I35: =+IF($F$22=FALSE,0,Tablas!G$167) -> 225 | J35: =+IF($F$22=FALSE,0,Tablas!H$167) -> 225
D36: Anexo: Trasplante Organos | E36: n/a | F36: =IF($F$24=FALSE,0,Tablas!D$341) -> 300 | G36: =IF($F$24=FALSE,0,Tablas!E$341) -> 300 | H36: =IF($F$24=FALSE,0,Tablas!F$341) -> 300 | I36: =IF($F$24=FALSE,0,Tablas!G$341) -> 300 | J36: =IF($F$24=FALSE,0,Tablas!H$341) -> 300
D37: PRIMA NETA | E37: n/a | F37: =SUM(F32:F36) -> 23294 | G37: =SUM(G32:G36) -> 18242 | H37: 13747 | I37: 11645 | J37: 8854
D38: =IF('INGRESO DE DATOS'!G18>0,"Descuento","") ->  | E38: n/a | F38: =IF('INGRESO DE DATOS'!$G$18>0,-(F32+F33+F34)*'INGRESO DE DATOS'!$G$18,0) -> 0 | G38: =IF('INGRESO DE DATOS'!$G$18>0,-(G32+G33+G34)*'INGRESO DE DATOS'!$G$18,0) -> 0 | H38: =IF('INGRESO DE DATOS'!$G$18>0,-(H32+H33+H34)*'INGRESO DE DATOS'!$G$18,0) -> 0 | I38: =IF('INGRESO DE DATOS'!$G$18>0,-(I32+I33+I34)*'INGRESO DE DATOS'!$G$18,0) -> 0 | J38: =IF('INGRESO DE DATOS'!$G$18>0,-(J32+J33+J34)*'INGRESO DE DATOS'!$G$18,0) -> 0
D39: Costo Administrativo Anual | E39: n/a | F39: 75 | G39: 75 | H39: 75 | I39: 75 | J39: 75
D40: IVA (12%) | E40: n/a | F40: =+(F37+F38+F39)*12% -> 2804.28 | G40: =+(G37+G38+G39)*12% -> 2198.04 | H40: 1658.64 | I40: 1406.4 | J40: =+(J37+J38+J39)*12% -> 1071.48
D41: TOTAL | E41: n/a | F41: =SUM(F37:F40) -> 26173.28 | G41: =SUM(G37:G40) -> 20515.04 | H41: =SUM(H37:H40) -> 15480.64 | I41: =SUM(I37:I40) -> 13126.4 | J41: =SUM(J37:J40) -> 10000.48
D43: Tarifas Semestrales
D44: Prima Titular | E44: n/a | F44: =VLOOKUP($J$18,Tablas!$A$173:$H$196,4,TRUE) -> 3932.07 | G44: =VLOOKUP($J$18,Tablas!$A$173:$H$196,5,TRUE) -> 3220.28 | H44: =VLOOKUP($J$18,Tablas!$A$173:$H$196,6,TRUE) -> 2379.7 | I44: =VLOOKUP($J$18,Tablas!$A$173:$H$196,7,TRUE) -> 1995.98 | J44: =VLOOKUP($J$18,Tablas!$A$173:$H$196,8,TRUE) -> 1515.27
D45: Prima Cónyuge | E45: n/a | F45: =IF($G$18=1,0,(VLOOKUP($J$20,Tablas!$A$173:$H$196,4,TRUE))) -> 5592.56 | G45: =IF($G$18=1,0,(VLOOKUP($J$20,Tablas!$A$173:$H$196,5,TRUE))) -> 4845.26 | H45: =IF($G$18=1,0,(VLOOKUP($J$20,Tablas!$A$173:$H$196,6,TRUE))) -> 3470.44 | I45: =IF($G$18=1,0,(VLOOKUP($J$20,Tablas!$A$173:$H$196,7,TRUE))) -> 2930.9 | J45: =IF($G$18=1,0,(VLOOKUP($J$20,Tablas!$A$173:$H$196,8,TRUE))) -> 2189.96
D46: Primas Hijos | E46: n/a | F46: =IF($G$20=0,0,(VLOOKUP($G$20,Tablas!$A$197:$H$199,4,TRUE))) -> 2542.94 | G46: =IF($G$20=0,0,(VLOOKUP($G$20,Tablas!$A$197:$H$199,5,TRUE))) -> 1324.47 | H46: =IF($G$20=0,0,(VLOOKUP($G$20,Tablas!$A$197:$H$199,6,TRUE))) -> 1157.52 | I46: =IF($G$20=0,0,(VLOOKUP($G$20,Tablas!$A$197:$H$199,7,TRUE))) -> 966.72 | J46: =IF($G$20=0,0,(VLOOKUP($G$20,Tablas!$A$197:$H$199,8,TRUE))) -> 709.14
D47: Anexo: Complicaciones de Maternidad | E47: n/a | F47: =+IF($F$22=FALSE,0,Tablas!D$200) -> 119.25 | G47: =+IF($F$22=FALSE,0,Tablas!E$200) -> 119.25 | H47: =+IF($F$22=FALSE,0,Tablas!F$200) -> 119.25 | I47: =+IF($F$22=FALSE,0,Tablas!G$200) -> 119.25 | J47: =+IF($F$22=FALSE,0,Tablas!H$200) -> 119.25
D48: Anexo: Trasplante Organos | E48: n/a | F48: =IF($F$24=FALSE,0,Tablas!D$413) -> 159 | G48: =IF($F$24=FALSE,0,Tablas!E$413) -> 159 | H48: =IF($F$24=FALSE,0,Tablas!F$413) -> 159 | I48: =IF($F$24=FALSE,0,Tablas!G$413) -> 159 | J48: =IF($F$24=FALSE,0,Tablas!H$413) -> 159
D49: PRIMA NETA | E49: n/a | F49: =SUM(F44:F48) -> 12345.82 | G49: =SUM(G44:G48) -> 9668.26 | H49: 7285.91 | I49: 6171.85 | J49: 4692.62
D50: =IF('INGRESO DE DATOS'!G18>0,"Descuento","") ->  | E50: n/a | F50: =IF('INGRESO DE DATOS'!$G$18>0,-(F44+F45+F46)*'INGRESO DE DATOS'!$G$18,0) -> 0 | G50: =IF('INGRESO DE DATOS'!$G$18>0,-(G44+G45+G46)*'INGRESO DE DATOS'!$G$18,0) -> 0 | H50: =IF('INGRESO DE DATOS'!$G$18>0,-(H44+H45+H46)*'INGRESO DE DATOS'!$G$18,0) -> 0 | I50: =IF('INGRESO DE DATOS'!$G$18>0,-(I44+I45+I46)*'INGRESO DE DATOS'!$G$18,0) -> 0 | J50: =IF('INGRESO DE DATOS'!$G$18>0,-(J44+J45+J46)*'INGRESO DE DATOS'!$G$18,0) -> 0
D51: Costo Administrativo Anual | E51: n/a | F51: 75 | G51: 75 | H51: 75 | I51: 75 | J51: 75
D52: IVA (12%) | E52: n/a | F52: =+(F49+F50+F51)*12% -> 1490.4984 | G52: =+(G49+G50+G51)*12% -> 1169.1912 | H52: 883.3092 | I52: 749.622 | J52: =+(J49+J50+J51)*12% -> 572.1144
D53: TOTAL (1ra Cuota) | E53: n/a | F53: =SUM(F49:F52) -> 13911.3184 | G53: =SUM(G49:G52) -> 10912.4512 | H53: =SUM(H49:H52) -> 8244.2192 | I53: =SUM(I49:I52) -> 6996.472 | J53: =SUM(J49:J52) -> 5339.7344
D54: TOTAL (2da Cuota) | E54: n/a | F54: =F49+F50+F52-(F51*0.12) -> 13827.3184 | G54: =G49+G50+G52-(G51*0.12) -> 10828.4512 | H54: 8160.2192 | I54: 6912.472 | J54: 5255.7344
D56: Tarifas Trimestrales
D57: Prima Titular | E57: n/a | F57: =VLOOKUP($J$18,Tablas!$A$957:$H$980,4,TRUE) -> 2040.225 | G57: =VLOOKUP($J$18,Tablas!$A$957:$H$980,5,TRUE) -> 1670.9 | H57: =VLOOKUP($J$18,Tablas!$A$957:$H$980,6,TRUE) -> 1234.75 | I57: =VLOOKUP($J$18,Tablas!$A$957:$H$980,7,TRUE) -> 1035.65 | J57: =VLOOKUP($J$18,Tablas!$A$957:$H$980,8,TRUE) -> 786.225
D58: Prima Cónyuge | E58: n/a | F58: =IF($G$18=1,0,(VLOOKUP($J$20,Tablas!$A$957:$H$980,4,TRUE))) -> 2901.8 | G58: =IF($G$18=1,0,(VLOOKUP($J$20,Tablas!$A$957:$H$980,5,TRUE))) -> 2514.05 | H58: =IF($G$18=1,0,(VLOOKUP($J$20,Tablas!$A$957:$H$980,6,TRUE))) -> 1800.7 | I58: =IF($G$18=1,0,(VLOOKUP($J$20,Tablas!$A$957:$H$980,7,TRUE))) -> 1520.75 | J58: =IF($G$18=1,0,(VLOOKUP($J$20,Tablas!$A$957:$H$980,8,TRUE))) -> 1136.3
D59: Primas Hijos | E59: n/a | F59: =IF($G$20=0,0,(VLOOKUP($G$20,Tablas!$A$981:$H$983,4,TRUE))) -> 1319.45 | G59: =IF($G$20=0,0,(VLOOKUP($G$20,Tablas!$A$981:$H$983,5,TRUE))) -> 687.225 | H59: =IF($G$20=0,0,(VLOOKUP($G$20,Tablas!$A$981:$H$983,6,TRUE))) -> 600.6 | I59: =IF($G$20=0,0,(VLOOKUP($G$20,Tablas!$A$981:$H$983,7,TRUE))) -> 501.6 | J59: =IF($G$20=0,0,(VLOOKUP($G$20,Tablas!$A$981:$H$983,8,TRUE))) -> 367.95
D60: Anexo: Complicaciones de Maternidad | E60: n/a | F60: =+IF($F$22=FALSE,0,Tablas!D$984) -> 61.875 | G60: =+IF($F$22=FALSE,0,Tablas!E$984) -> 61.875 | H60: =+IF($F$22=FALSE,0,Tablas!F$984) -> 61.875 | I60: =+IF($F$22=FALSE,0,Tablas!G$984) -> 61.875 | J60: =+IF($F$22=FALSE,0,Tablas!H$984) -> 61.875
D61: Anexo: Trasplante Organos | E61: n/a | F61: =IF($F$24=FALSE,0,Tablas!D$413) -> 159 | G61: =IF($F$24=FALSE,0,Tablas!E$413) -> 159 | H61: =IF($F$24=FALSE,0,Tablas!F$413) -> 159 | I61: =IF($F$24=FALSE,0,Tablas!G$413) -> 159 | J61: =IF($F$24=FALSE,0,Tablas!H$413) -> 159
D62: PRIMA NETA | E62: n/a | F62: =SUM(F57:F61) -> 6482.35 | G62: =SUM(G57:G61) -> 5093.05 | H62: 3856.925 | I62: 3278.875 | J62: 2511.35
D63: =IF('INGRESO DE DATOS'!G33>0,"Descuento","") ->  | E63: n/a | F63: =IF('INGRESO DE DATOS'!$G$18>0,-(F57+F58+F59)*'INGRESO DE DATOS'!$G$18,0) -> 0 | G63: =IF('INGRESO DE DATOS'!$G$18>0,-(G57+G58+G59)*'INGRESO DE DATOS'!$G$18,0) -> 0 | H63: =IF('INGRESO DE DATOS'!$G$18>0,-(H57+H58+H59)*'INGRESO DE DATOS'!$G$18,0) -> 0 | I63: =IF('INGRESO DE DATOS'!$G$18>0,-(I57+I58+I59)*'INGRESO DE DATOS'!$G$18,0) -> 0 | J63: =IF('INGRESO DE DATOS'!$G$18>0,-(J57+J58+J59)*'INGRESO DE DATOS'!$G$18,0) -> 0
D64: Costo Administrativo Anual | E64: n/a | F64: 75 | G64: 75 | H64: 75 | I64: 75 | J64: 75
D65: IVA (12%) | E65: n/a | F65: =+(F62+F63+F64)*12% -> 786.882 | G65: =+(G62+G63+G64)*12% -> 620.166 | H65: 471.831 | I65: 402.465 | J65: =+(J62+J63+J64)*12% -> 310.362
D66: TOTAL (1ra Cuota) | E66: n/a | F66: =SUM(F62:F65) -> 7344.232 | G66: =SUM(G62:G65) -> 5788.216 | H66: =SUM(H62:H65) -> 4403.756 | I66: =SUM(I62:I65) -> 3756.34 | J66: =SUM(J62:J65) -> 2896.712
D67: TOTAL (2da a 4ta Cuota) | E67: n/a | F67: =F62+F63+F65-(F64*0.12) -> 7260.232 | G67: =G62+G63+G65-(G64*0.12) -> 5704.216 | H67: 4319.756 | I67: 3672.34 | J67: 2812.712
D69: Tarifas en US $ - Válidas desde 01 Ene 2023
D70: Este presupuesto solamente tiene carácter informativo y en ningún momento expresa compromiso legal para suministrarle cobertura de seguro. La emisión de una póliza de seguro Bupa está sujeta a todas las evaluaciones de riesgo por parte de Bupa y a la recepción de todos los pagos de prima requeridos.

Sheet Premium
D8: Cotización de Seguro Médico Internacional
D9: Producto: Bupa Premium Care
A10: BUPA PREMIUM CARE
D12: Nombre del Asegurado: | E12: =+'INGRESO DE DATOS'!$D$12 -> Nombre
D14: Intermediario: | E14: =+'INGRESO DE DATOS'!$D$23 -> Agente / Agencia
D16: Fecha: | E16: =+TODAY() -> 2022-12-20 | G16: =IF('INGRESO DE DATOS'!G18>0,"Descuento","") ->  | H16: =IF('INGRESO DE DATOS'!G18>0,'INGRESO DE DATOS'!G18,"") -> 
F18: Numero de Adultos: | G18: =+'INGRESO DE DATOS'!$G$14 -> 2 | I18: Edad de Titular: | J18: =+'INGRESO DE DATOS'!$G$16 -> 32
F20: Numero de Hijos: | G20: =+'INGRESO DE DATOS'!$J$14 -> 2 | I20: Edad de Conyuge: | J20: =+'INGRESO DE DATOS'!$J$16 -> 46
H22: Complicaciones de Maternidad (+ $500,000)
F23: TRUE
F24: TRUE | H24: Trasplante de Órganos (+ $500,000)
F25: TRUE
H26: Eliminación de Deducible
D28: Deducibles
E29: PLAN 1 | F29: PLAN 2 | G29: PLAN 3 | H29: PLAN 4 | I29: PLAN 5 | J29: PLAN 6
D30: Dentro del pais de residencia | E30: n/a | F30: 1000 | G30: 2000 | H30: 5000 | I30: 10000 | J30: 20000
D31: Fuera del pais de residencia | E31: n/a | F31: 2000 | G31: 3000 | H31: 5000 | I31: 10000 | J31: 20000
D33: Tarifas Anuales
D34: Prima Titular | E34: n/a | F34: =VLOOKUP($J$18,Tablas!$A$274:$H$336,4,TRUE) -> 7901 | G34: =VLOOKUP($J$18,Tablas!$A$274:$H$336,5,TRUE) -> 6050 | H34: =VLOOKUP($J$18,Tablas!$A$274:$H$336,6,TRUE) -> 4427 | I34: =VLOOKUP($J$18,Tablas!$A$274:$H$336,7,TRUE) -> 3299 | J34: =VLOOKUP($J$18,Tablas!$A$274:$H$336,8,TRUE) -> 2553
D35: Prima Cónyuge | E35: n/a | F35: =IF($G$18=1,0,(VLOOKUP($J$20,Tablas!$A$274:$H$336,4,TRUE))) -> 11147 | G35: =IF($G$18=1,0,(VLOOKUP($J$20,Tablas!$A$274:$H$336,5,TRUE))) -> 8909 | H35: =IF($G$18=1,0,(VLOOKUP($J$20,Tablas!$A$274:$H$336,6,TRUE))) -> 6881 | I35: =IF($G$18=1,0,(VLOOKUP($J$20,Tablas!$A$274:$H$336,7,TRUE))) -> 5104 | J35: =IF($G$18=1,0,(VLOOKUP($J$20,Tablas!$A$274:$H$336,8,TRUE))) -> 3512
D36: Primas Hijos | E36: n/a | F36: =IF($G$20=0,0,(VLOOKUP($G$20,Tablas!$A$337:$H$339,4,TRUE))) -> 4709 | G36: =IF($G$20=0,0,(VLOOKUP($G$20,Tablas!$A$337:$H$339,5,TRUE))) -> 3252 | H36: =IF($G$20=0,0,(VLOOKUP($G$20,Tablas!$A$337:$H$339,6,TRUE))) -> 2405 | I36: =IF($G$20=0,0,(VLOOKUP($G$20,Tablas!$A$337:$H$339,7,TRUE))) -> 2076 | J36: =IF($G$20=0,0,(VLOOKUP($G$20,Tablas!$A$337:$H$339,8,TRUE))) -> 1383
D37: Anexo: Complicaciones de Maternidad | E37: n/a | F37: =+IF($F$23=FALSE,0,Tablas!D$340) -> 225 | G37: =+IF($F$23=FALSE,0,Tablas!E$340) -> 225 | H37: =+IF($F$23=FALSE,0,Tablas!F$340) -> 225 | I37: =+IF($F$23=FALSE,0,Tablas!G$340) -> 225 | J37: =+IF($F$23=FALSE,0,Tablas!H$340) -> 225
D38: Anexo: Trasplante Organos | E38: n/a | F38: =IF($F$24=FALSE,0,Tablas!D$341) -> 300 | G38: =IF($F$24=FALSE,0,Tablas!E$341) -> 300 | H38: =IF($F$24=FALSE,0,Tablas!F$341) -> 300 | I38: =IF($F$24=FALSE,0,Tablas!G$341) -> 300 | J38: =IF($F$24=FALSE,0,Tablas!H$341) -> 300
D39: Anexo: Eliminacion de Deducible | E39: n/a | F39: =IF($F$25=FALSE,0,Tablas!D$342) -> 180 | G39: =IF($F$25=FALSE,0,Tablas!E$342) -> 345 | H39: =IF($F$25=FALSE,0,Tablas!F$342) -> 775 | I39: =IF($F$25=FALSE,0,Tablas!G$342) -> 1330 | J39: =IF($F$25=FALSE,0,Tablas!H$342) -> 2080
D40: PRIMA NETA | E40: n/a | F40: =SUM(F34:F39) -> 24462 | G40: =SUM(G34:G39) -> 19081 | H40: 15013 | I40: 12334 | J40: 10053
D41: =IF('INGRESO DE DATOS'!G18>0,"Descuento","") ->  | E41: n/a | F41: =IF('INGRESO DE DATOS'!$G$18>0,-(F34+F35+F36)*'INGRESO DE DATOS'!$G$18,0) -> 0 | G41: =IF('INGRESO DE DATOS'!$G$18>0,-(G34+G35+G36)*'INGRESO DE DATOS'!$G$18,0) -> 0 | H41: =IF('INGRESO DE DATOS'!$G$18>0,-(H34+H35+H36)*'INGRESO DE DATOS'!$G$18,0) -> 0 | I41: =IF('INGRESO DE DATOS'!$G$18>0,-(I34+I35+I36)*'INGRESO DE DATOS'!$G$18,0) -> 0 | J41: =IF('INGRESO DE DATOS'!$G$18>0,-(J34+J35+J36)*'INGRESO DE DATOS'!$G$18,0) -> 0
D42: Costo Administrativo Anual | E42: n/a | F42: 75 | G42: 75 | H42: 75 | I42: 75 | J42: 75
D43: IVA (12%) | E43: n/a | F43: =+(F40+F41+F42)*12% -> 2944.44 | G43: =+(G40+G41+G42)*12% -> 2298.72 | H43: 1810.56 | I43: 1489.08 | J43: =+(J40+J41+J42)*12% -> 1215.36
D44: TOTAL | E44: n/a | F44: =SUM(F40:F43) -> 27481.44 | G44: =SUM(G40:G43) -> 21454.72 | H44: =SUM(H40:H43) -> 16898.56 | I44: =SUM(I40:I43) -> 13898.08 | J44: =SUM(J40:J43) -> 11343.36
D46: Tarifas Semestrales
D47: Prima Titular | E47: n/a | F47: =VLOOKUP($J$18,Tablas!$A$346:$H$408,4,TRUE) -> 4187.53 | G47: =VLOOKUP($J$18,Tablas!$A$346:$H$408,5,TRUE) -> 3206.5 | H47: =VLOOKUP($J$18,Tablas!$A$346:$H$408,6,TRUE) -> 2346.31 | I47: =VLOOKUP($J$18,Tablas!$A$346:$H$408,7,TRUE) -> 1748.47 | J47: =VLOOKUP($J$18,Tablas!$A$346:$H$408,8,TRUE) -> 1353.09
D48: Prima Cónyuge | E48: n/a | F48: =IF($G$18=1,0,(VLOOKUP($J$20,Tablas!$A$346:$H$408,4,TRUE))) -> 5907.91 | G48: =IF($G$18=1,0,(VLOOKUP($J$20,Tablas!$A$346:$H$408,5,TRUE))) -> 4721.77 | H48: =IF($G$18=1,0,(VLOOKUP($J$20,Tablas!$A$346:$H$408,6,TRUE))) -> 3646.93 | I48: =IF($G$18=1,0,(VLOOKUP($J$20,Tablas!$A$346:$H$408,7,TRUE))) -> 2705.12 | J48: =IF($G$18=1,0,(VLOOKUP($J$20,Tablas!$A$346:$H$408,8,TRUE))) -> 1861.36
D49: Primas Hijos | E49: n/a | F49: =IF($G$20=0,0,(VLOOKUP($G$20,Tablas!$A$409:$H$411,4,TRUE))) -> 2495.77 | G49: =IF($G$20=0,0,(VLOOKUP($G$20,Tablas!$A$409:$H$411,5,TRUE))) -> 1723.56 | H49: =IF($G$20=0,0,(VLOOKUP($G$20,Tablas!$A$409:$H$411,6,TRUE))) -> 1274.65 | I49: =IF($G$20=0,0,(VLOOKUP($G$20,Tablas!$A$409:$H$411,7,TRUE))) -> 1100.28 | J49: =IF($G$20=0,0,(VLOOKUP($G$20,Tablas!$A$409:$H$411,8,TRUE))) -> 732.99
D50: Anexo: Complicaciones de Maternidad | E50: n/a | F50: =+IF($F$23=FALSE,0,Tablas!D$412) -> 119.25 | G50: =+IF($F$23=FALSE,0,Tablas!E$412) -> 119.25 | H50: =+IF($F$23=FALSE,0,Tablas!F$412) -> 119.25 | I50: =+IF($F$23=FALSE,0,Tablas!G$412) -> 119.25 | J50: =+IF($F$23=FALSE,0,Tablas!H$412) -> 119.25
D51: Anexo: Trasplante Organos | E51: n/a | F51: =IF($F$24=FALSE,0,Tablas!D$413) -> 159 | G51: =IF($F$24=FALSE,0,Tablas!E$413) -> 159 | H51: =IF($F$24=FALSE,0,Tablas!F$413) -> 159 | I51: =IF($F$24=FALSE,0,Tablas!G$413) -> 159 | J51: =IF($F$24=FALSE,0,Tablas!H$413) -> 159
D52: Anexo: Eliminacion de Deducible | E52: n/a | F52: =IF($F$25=FALSE,0,Tablas!D$414) -> 95.4 | G52: =IF($F$25=FALSE,0,Tablas!E$414) -> 182.85 | H52: =IF($F$25=FALSE,0,Tablas!F$414) -> 410.75 | I52: =IF($F$25=FALSE,0,Tablas!G$414) -> 704.9 | J52: =IF($F$25=FALSE,0,Tablas!H$414) -> 1102.4
D53: PRIMA NETA | E53: n/a | F53: =SUM(F47:F52) -> 12964.86 | G53: =SUM(G47:G52) -> 10112.93 | H53: 7956.89 | I53: 6537.02 | J53: 5328.09
D54: =IF('INGRESO DE DATOS'!G18>0,"Descuento","") ->  | E54: n/a | F54: =IF('INGRESO DE DATOS'!$G$18>0,-(F47+F48+F49)*'INGRESO DE DATOS'!$G$18,0) -> 0 | G54: =IF('INGRESO DE DATOS'!$G$18>0,-(G47+G48+G49)*'INGRESO DE DATOS'!$G$18,0) -> 0 | H54: =IF('INGRESO DE DATOS'!$G$18>0,-(H47+H48+H49)*'INGRESO DE DATOS'!$G$18,0) -> 0 | I54: =IF('INGRESO DE DATOS'!$G$18>0,-(I47+I48+I49)*'INGRESO DE DATOS'!$G$18,0) -> 0 | J54: =IF('INGRESO DE DATOS'!$G$18>0,-(J47+J48+J49)*'INGRESO DE DATOS'!$G$18,0) -> 0
D55: Costo Administrativo Anual | E55: n/a | F55: 75 | G55: 75 | H55: 75 | I55: 75 | J55: 75
D56: IVA (12%) | E56: n/a | F56: =+(F53+F54+F55)*12% -> 1564.7832 | G56: =+(G53+G54+G55)*12% -> 1222.5516 | H56: =+(H53+H54+H55)*12% -> 963.8268 | I56: =+(I53+I54+I55)*12% -> 793.4424 | J56: =+(J53+J54+J55)*12% -> 648.3708
D57: TOTAL (1ra Cuota) | E57: n/a | F57: =SUM(F53:F56) -> 14604.6432 | G57: =SUM(G53:G56) -> 11410.4816 | H57: =SUM(H53:H56) -> 8995.7168 | I57: =SUM(I53:I56) -> 7405.4624 | J57: =SUM(J53:J56) -> 6051.4608
D58: TOTAL (2da Cuota) | E58: n/a | F58: =F53+F54+F56-(F55*0.12) -> 14520.6432 | G58: =G53+G54+G56-(G55*0.12) -> 11326.4816 | H58: 8911.7168 | I58: 7321.4624 | J58: 5967.4608
D60: Tarifas Trimestrales
D61: Prima Titular | E61: n/a | F61: =VLOOKUP($J$18,Tablas!$A$991:$H$1053,4,TRUE) -> 2172.775 | G61: =VLOOKUP($J$18,Tablas!$A$991:$H$1053,5,TRUE) -> 1663.75 | H61: =VLOOKUP($J$18,Tablas!$A$991:$H$1053,6,TRUE) -> 1217.425 | I61: =VLOOKUP($J$18,Tablas!$A$991:$H$1053,7,TRUE) -> 907.225 | J61: =VLOOKUP($J$18,Tablas!$A$991:$H$1053,8,TRUE) -> 702.075
D62: Prima Cónyuge | E62: n/a | F62: =IF($G$18=1,0,(VLOOKUP($J$20,Tablas!$A$991:$H$1053,4,TRUE))) -> 3065.425 | G62: =IF($G$18=1,0,(VLOOKUP($J$20,Tablas!$A$991:$H$1053,5,TRUE))) -> 2449.975 | H62: =IF($G$18=1,0,(VLOOKUP($J$20,Tablas!$A$991:$H$1053,6,TRUE))) -> 1892.275 | I62: =IF($G$18=1,0,(VLOOKUP($J$20,Tablas!$A$991:$H$1053,7,TRUE))) -> 1403.6 | J62: =IF($G$18=1,0,(VLOOKUP($J$20,Tablas!$A$991:$H$1053,8,TRUE))) -> 965.8
D63: Primas Hijos | E63: n/a | F63: =IF($G$20=0,0,(VLOOKUP($G$20,Tablas!$A$1054:$H$1056,4,TRUE))) -> 1294.975 | G63: =IF($G$20=0,0,(VLOOKUP($G$20,Tablas!$A$1054:$H$1056,5,TRUE))) -> 894.3 | H63: =IF($G$20=0,0,(VLOOKUP($G$20,Tablas!$A$1054:$H$1056,6,TRUE))) -> 661.375 | I63: =IF($G$20=0,0,(VLOOKUP($G$20,Tablas!$A$1054:$H$1056,7,TRUE))) -> 570.9 | J63: =IF($G$20=0,0,(VLOOKUP($G$20,Tablas!$A$1054:$H$1056,8,TRUE))) -> 380.325
D64: Anexo: Complicaciones de Maternidad | E64: n/a | F64: =+IF($F$23=FALSE,0,Tablas!D$1057) -> 61.875 | G64: =+IF($F$23=FALSE,0,Tablas!E$1057) -> 61.875 | H64: =+IF($F$23=FALSE,0,Tablas!F$1057) -> 61.875 | I64: =+IF($F$23=FALSE,0,Tablas!G$1057) -> 61.875 | J64: =+IF($F$23=FALSE,0,Tablas!H$1057) -> 61.875
D65: Anexo: Trasplante Organos | E65: n/a | F65: =IF($F$24=FALSE,0,Tablas!D$1058) -> 82.5 | G65: =IF($F$24=FALSE,0,Tablas!E$1058) -> 82.5 | H65: =IF($F$24=FALSE,0,Tablas!F$1058) -> 82.5 | I65: =IF($F$24=FALSE,0,Tablas!G$1058) -> 82.5 | J65: =IF($F$24=FALSE,0,Tablas!H$1058) -> 82.5
D66: Anexo: Eliminacion de Deducible | E66: n/a | F66: =IF($F$25=FALSE,0,Tablas!D$1059) -> 49.5 | G66: =IF($F$25=FALSE,0,Tablas!E$1059) -> 94.875 | H66: =IF($F$25=FALSE,0,Tablas!F$1059) -> 213.125 | I66: =IF($F$25=FALSE,0,Tablas!G$1059) -> 365.75 | J66: =IF($F$25=FALSE,0,Tablas!H$1059) -> 572
D67: PRIMA NETA | E67: n/a | F67: =SUM(F61:F66) -> 6727.05 | G67: =SUM(G61:G66) -> 5247.275 | H67: 4128.575 | I67: 3391.85 | J67: 2764.575
D68: =IF('INGRESO DE DATOS'!G34>0,"Descuento","") ->  | E68: n/a | F68: =IF('INGRESO DE DATOS'!$G$18>0,-(F61+F62+F63)*'INGRESO DE DATOS'!$G$18,0) -> 0 | G68: =IF('INGRESO DE DATOS'!$G$18>0,-(G61+G62+G63)*'INGRESO DE DATOS'!$G$18,0) -> 0 | H68: =IF('INGRESO DE DATOS'!$G$18>0,-(H61+H62+H63)*'INGRESO DE DATOS'!$G$18,0) -> 0 | I68: =IF('INGRESO DE DATOS'!$G$18>0,-(I61+I62+I63)*'INGRESO DE DATOS'!$G$18,0) -> 0 | J68: =IF('INGRESO DE DATOS'!$G$18>0,-(J61+J62+J63)*'INGRESO DE DATOS'!$G$18,0) -> 0
D69: Costo Administrativo Anual | E69: n/a | F69: 75 | G69: 75 | H69: 75 | I69: 75 | J69: 75
D70: IVA (12%) | E70: n/a | F70: =+(F67+F68+F69)*12% -> 816.246 | G70: =+(G67+G68+G69)*12% -> 638.673 | H70: 504.429 | I70: 416.022 | J70: =+(J67+J68+J69)*12% -> 340.749
D71: TOTAL (1ra Cuota) | E71: n/a | F71: =SUM(F67:F70) -> 7618.296 | G71: =SUM(G67:G70) -> 5960.948 | H71: =SUM(H67:H70) -> 4708.004 | I71: =SUM(I67:I70) -> 3882.872 | J71: =SUM(J67:J70) -> 3180.324
D72: TOTAL (2da a 4ta Cuota) | E72: n/a | F72: =F67+F68+F70-(F69*0.12) -> 7534.296 | G72: =G67+G68+G70-(G69*0.12) -> 5876.948 | H72: 4624.004 | I72: 3798.872 | J72: 3096.324
D74: Tarifas en US $ - Válidas desde 01 Ene 2023
D75: Este presupuesto solamente tiene carácter informativo y en ningún momento expresa compromiso legal para suministrarle cobertura de seguro. La emisión de una póliza de seguro Bupa está sujeta a todas las evaluaciones de riesgo por parte de Bupa y a la recepción de todos los pagos de prima requeridos.

Sheet Bupa Essential Care
D8: Cotización de Seguro Médico Internacional
D9: BUPA Essential Care
A10: Bupa Essential Care
D11: Nombre del Asegurado: | E11: =+'INGRESO DE DATOS'!$D$14 -> Número de Adultos:
D13: Intermediario: | E13: =+'INGRESO DE DATOS'!$D$23 -> Agente / Agencia
D15: Fecha: | E15: =+TODAY() -> 2022-12-20 | G15: =IF('INGRESO DE DATOS'!G20>0,"Descuento","") ->  | H15: =IF('INGRESO DE DATOS'!G20>0,'INGRESO DE DATOS'!G20,"") -> 
F17: Numero de Adultos: | G17: =+'INGRESO DE DATOS'!$G$14 -> 2 | I17: Edad de Titular: | J17: =+'INGRESO DE DATOS'!$G$16 -> 32
F19: Numero de Hijos: | G19: =+'INGRESO DE DATOS'!$J$14 -> 2 | I19: Edad de Conyuge: | J19: =+'INGRESO DE DATOS'!$J$16 -> 46
H21: Complicaciones de Maternidad (planes 1, 2, y 3)
F22: TRUE
F23: TRUE | H23: Trasplante de Órganos
F24: FALSE
H25: Eliminación de Deducible
D26: Deducibles
E27: PLAN 1 | F27: PLAN 2 | G27: PLAN 3 | H27: PLAN 4 | I27: PLAN 5 | J27: PLAN 6
D28: Dentro del pais de residencia | E28: 250 | F28: 250 | G28: 1000 | H28: 5000 | I28: 10000 | J28: 20000
D29: Fuera del pais de residencia | E29: 1000 | F29: 5000 | G29: 10000 | H29: 5000 | I29: 10000 | J29: 20000
D31: Tarifas Anuales
D32: Prima Titular | E32: =VLOOKUP($J$17,Tablas!$A$778:$H$843,3,TRUE) -> 1961 | F32: =VLOOKUP($J$17,Tablas!$A$778:$H$843,4,TRUE) -> 1886 | G32: =VLOOKUP($J$17,Tablas!$A$778:$H$843,5,TRUE) -> 1748 | H32: =VLOOKUP($J$17,Tablas!$A$778:$H$843,6,TRUE) -> 1239 | I32: =VLOOKUP($J$17,Tablas!$A$778:$H$843,7,TRUE) -> 907 | J32: =VLOOKUP($J$17,Tablas!$A$778:$H$843,8,TRUE) -> 644
D33: Prima Cónyuge | E33: =IF($G$17=1,0,(VLOOKUP($J$19,Tablas!$A$778:$H$840,3,TRUE))) -> 2980 | F33: =IF($G$17=1,0,(VLOOKUP($J$19,Tablas!$A$778:$H$840,4,TRUE))) -> 2866 | G33: =IF($G$17=1,0,(VLOOKUP($J$19,Tablas!$A$778:$H$840,5,TRUE))) -> 2657 | H33: =IF($G$17=1,0,(VLOOKUP($J$19,Tablas!$A$778:$H$840,6,TRUE))) -> 1881 | I33: =IF($G$17=1,0,(VLOOKUP($J$19,Tablas!$A$778:$H$840,7,TRUE))) -> 1324 | J33: =IF($G$17=1,0,(VLOOKUP($J$19,Tablas!$A$778:$H$840,8,TRUE))) -> 925
D34: Primas Hijos | E34: =IF($G$19=0,0,(VLOOKUP($G$19,Tablas!$A$841:$H$843,3,TRUE))) -> 996 | F34: =IF($G$19=0,0,(VLOOKUP($G$19,Tablas!$A$841:$H$843,4,TRUE))) -> 958 | G34: =IF($G$19=0,0,(VLOOKUP($G$19,Tablas!$A$841:$H$843,5,TRUE))) -> 888 | H34: =IF($G$19=0,0,(VLOOKUP($G$19,Tablas!$A$841:$H$843,6,TRUE))) -> 629 | I34: =IF($G$19=0,0,(VLOOKUP($G$19,Tablas!$A$841:$H$843,7,TRUE))) -> 524 | J34: =IF($G$19=0,0,(VLOOKUP($G$19,Tablas!$A$841:$H$843,8,TRUE))) -> 414
D35: Anexo: Complicaciones de Maternidad | E35: =+IF($F$22=FALSE,0,Tablas!C$844) -> 225 | F35: =+IF($F$22=FALSE,0,Tablas!D$844) -> 225 | G35: =+IF($F$22=FALSE,0,Tablas!E$844) -> 225 | H35: =+IF($F$22=FALSE,0,Tablas!F$844) -> 0 | I35: =+IF($F$22=FALSE,0,Tablas!G$844) -> 0 | J35: =+IF($F$22=FALSE,0,Tablas!H$844) -> 0
D36: Anexo: Trasplante Organos | E36: =IF($F$23=FALSE,0,Tablas!C$845) -> 300 | F36: =IF($F$23=FALSE,0,Tablas!D$845) -> 300 | G36: =IF($F$23=FALSE,0,Tablas!E$845) -> 300 | H36: =IF($F$23=FALSE,0,Tablas!F$845) -> 300 | I36: =IF($F$23=FALSE,0,Tablas!G$845) -> 300 | J36: =IF($F$23=FALSE,0,Tablas!H$845) -> 300
D37: Anexo: Eliminacion de Deducible | E37: 0 | F37: 0 | G37: 0 | H37: 0 | I37: 0 | J37: 0
D38: PRIMA NETA | E38: =SUM(E32:E37) -> 6462 | F38: 6235 | G38: 5818 | H38: 4049 | I38: 3055 | J38: 2283
E39: 0 | F39: 0 | G39: 0 | H39: 0 | I39: 0 | J39: 0
D40: Costo Administrativo Anual | E40: 75 | F40: 75 | G40: 75 | H40: 75 | I40: 75 | J40: 75
D41: IVA (12%) | E41: =+(E38+E39+E40)*12% -> 784.44 | F41: =+(F38+F39+F40)*12% -> 757.2 | G41: =+(G38+G39+G40)*12% -> 707.16 | H41: 494.88 | I41: 375.6 | J41: =+(J38+J39+J40)*12% -> 282.96
D42: TOTAL | E42: =SUM(E38:E41) -> 7321.44 | F42: 7067.2 | G42: 6600.16 | H42: 4618.88 | I42: 3505.6 | J42: 2640.96
D44: Tarifas Semestrales
D45: Prima Titular | E45: =VLOOKUP($J$17,Tablas!$A$850:$H$912,3,TRUE) -> 1039.33 | F45: =VLOOKUP($J$17,Tablas!$A$850:$H$912,4,TRUE) -> 999.58 | G45: =VLOOKUP($J$17,Tablas!$A$850:$H$912,5,TRUE) -> 926.44 | H45: =VLOOKUP($J$17,Tablas!$A$850:$H$912,6,TRUE) -> 656.67 | I45: =VLOOKUP($J$17,Tablas!$A$850:$H$912,7,TRUE) -> 480.71 | J45: =VLOOKUP($J$17,Tablas!$A$850:$H$912,8,TRUE) -> 341.32
D46: Prima Cónyuge | E46: =IF($G$17=1,0,(VLOOKUP($J$19,Tablas!$A$850:$H$912,3,TRUE))) -> 1579.4 | F46: =IF($G$17=1,0,(VLOOKUP($J$19,Tablas!$A$850:$H$912,4,TRUE))) -> 1518.98 | G46: =IF($G$17=1,0,(VLOOKUP($J$19,Tablas!$A$850:$H$912,5,TRUE))) -> 1408.21 | H46: =IF($G$17=1,0,(VLOOKUP($J$19,Tablas!$A$850:$H$912,6,TRUE))) -> 996.93 | I46: =IF($G$17=1,0,(VLOOKUP($J$19,Tablas!$A$850:$H$912,7,TRUE))) -> 701.72 | J46: =IF($G$17=1,0,(VLOOKUP($J$19,Tablas!$A$850:$H$912,8,TRUE))) -> 490.25
D47: Primas Hijos | E47: =IF($G$19=0,0,(VLOOKUP($G$19,Tablas!$A$913:$H$915,3,TRUE))) -> 527.88 | F47: =IF($G$19=0,0,(VLOOKUP($G$19,Tablas!$A$913:$H$915,4,TRUE))) -> 507.74 | G47: =IF($G$19=0,0,(VLOOKUP($G$19,Tablas!$A$913:$H$915,5,TRUE))) -> 470.64 | H47: =IF($G$19=0,0,(VLOOKUP($G$19,Tablas!$A$913:$H$915,6,TRUE))) -> 333.37 | I47: =IF($G$19=0,0,(VLOOKUP($G$19,Tablas!$A$913:$H$915,7,TRUE))) -> 277.72 | J47: =IF($G$19=0,0,(VLOOKUP($G$19,Tablas!$A$913:$H$915,8,TRUE))) -> 219.42
D48: Anexo: Complicaciones de Maternidad | E48: =+IF($F$22=FALSE,0,Tablas!C$916) -> 119.25 | F48: =+IF($F$22=FALSE,0,Tablas!D$916) -> 119.25 | G48: =+IF($F$22=FALSE,0,Tablas!E$916) -> 119.25 | H48: =+IF($F$22=FALSE,0,Tablas!F$916) -> 0 | I48: =+IF($F$22=FALSE,0,Tablas!G$916) -> 0 | J48: =+IF($F$22=FALSE,0,Tablas!H$916) -> 0
D49: Anexo: Trasplante Organos | E49: =IF($F$23=FALSE,0,Tablas!C$917) -> 159 | F49: =IF($F$23=FALSE,0,Tablas!D$917) -> 159 | G49: =IF($F$23=FALSE,0,Tablas!E$917) -> 159 | H49: =IF($F$23=FALSE,0,Tablas!F$917) -> 159 | I49: =IF($F$23=FALSE,0,Tablas!G$917) -> 159 | J49: =IF($F$23=FALSE,0,Tablas!H$917) -> 159
D50: Anexo: Eliminacion de Deducible | E50: 0 | F50: 0 | G50: 0 | H50: 0 | I50: 0 | J50: 0
D51: PRIMA NETA | E51: =SUM(E45:E50) -> 3424.86 | F51: =SUM(F45:F50) -> 3304.55 | G51: =SUM(G45:G50) -> 3083.54 | H51: 2145.97 | I51: 1619.15 | J51: 1209.99
E52: 0 | F52: 0 | G52: 0 | H52: 0 | I52: 0 | J52: 0
D53: Costo Administrativo Anual | E53: 75 | F53: 75 | G53: 75 | H53: 75 | I53: 75 | J53: 75
D54: IVA (12%) | E54: =+(E51+E52+E53)*12% -> 419.9832 | F54: =+(F51+F52+F53)*12% -> 405.546 | G54: =+(G51+G52+G53)*12% -> 379.0248 | H54: 266.5164 | I54: 203.298 | J54: =+(J51+J52+J53)*12% -> 154.1988
D55: (1ra Cuota) | E55: =SUM(E51:E54) -> 3919.8432 | F55: 3785.096 | G55: 3537.5648 | H55: 2487.4864 | I55: 1897.448 | J55: 1439.1888
D56: (2da Cuota) | E56: =E51+E52+E54-(E53*0.12) -> 3835.8432 | F56: =F51+F52+F54-(F53*0.12) -> 3701.096 | G56: =G51+G52+G54-(G53*0.12) -> 3453.5648 | H56: 2403.4864 | I56: 1813.448 | J56: 1355.1888
D57: TOTAL | E57: =SUM(E55:E56) -> 7755.6864 | F57: =SUM(F55:F56) -> 7486.192 | G57: 6991.1296 | H57: 4890.9728 | I57: 3710.896 | J57: 2794.3776
D60: Tarifas Trimestrales
D61: Prima Titular | E61: =VLOOKUP($J$17,Tablas!$A$1141:$H$1203,3,TRUE) -> 539.275 | F61: =VLOOKUP($J$17,Tablas!$A$1141:$H$1203,4,TRUE) -> 518.65 | G61: =VLOOKUP($J$17,Tablas!$A$1141:$H$1203,5,TRUE) -> 480.7 | H61: =VLOOKUP($J$17,Tablas!$A$1141:$H$1203,6,TRUE) -> 340.725 | I61: =VLOOKUP($J$17,Tablas!$A$1141:$H$1203,7,TRUE) -> 249.425 | J61: =VLOOKUP($J$17,Tablas!$A$1141:$H$1203,8,TRUE) -> 177.1
D62: Prima Cónyuge | E62: =IF($G$17=1,0,(VLOOKUP($J$19,Tablas!$A$1141:$H$1203,3,TRUE))) -> 819.5 | F62: =IF($G$17=1,0,(VLOOKUP($J$19,Tablas!$A$1141:$H$1203,4,TRUE))) -> 788.15 | G62: =IF($G$17=1,0,(VLOOKUP($J$19,Tablas!$A$1141:$H$1203,5,TRUE))) -> 730.675 | H62: =IF($G$17=1,0,(VLOOKUP($J$19,Tablas!$A$1141:$H$1203,6,TRUE))) -> 517.275 | I62: =IF($G$17=1,0,(VLOOKUP($J$19,Tablas!$A$1141:$H$1203,7,TRUE))) -> 364.1 | J62: =IF($G$17=1,0,(VLOOKUP($J$19,Tablas!$A$1141:$H$1203,8,TRUE))) -> 254.375
D63: Primas Hijos | E63: =IF($G$19=0,0,(VLOOKUP($G$19,Tablas!$A$1204:$H$1206,3,TRUE))) -> 273.9 | F63: =IF($G$19=0,0,(VLOOKUP($G$19,Tablas!$A$1204:$H$1206,4,TRUE))) -> 263.45 | G63: =IF($G$19=0,0,(VLOOKUP($G$19,Tablas!$A$1204:$H$1206,5,TRUE))) -> 244.2 | H63: =IF($G$19=0,0,(VLOOKUP($G$19,Tablas!$A$1204:$H$1206,6,TRUE))) -> 172.975 | I63: =IF($G$19=0,0,(VLOOKUP($G$19,Tablas!$A$1204:$H$1206,7,TRUE))) -> 144.1 | J63: =IF($G$19=0,0,(VLOOKUP($G$19,Tablas!$A$1204:$H$1206,8,TRUE))) -> 113.85
D64: Anexo: Complicaciones de Maternidad | E64: =+IF($F$22=FALSE,0,Tablas!C$1207) -> 61.875 | F64: =+IF($F$22=FALSE,0,Tablas!D$1207) -> 61.875 | G64: =+IF($F$22=FALSE,0,Tablas!E$1207) -> 61.875 | H64: =+IF($F$22=FALSE,0,Tablas!F$1207) -> 0 | I64: =+IF($F$22=FALSE,0,Tablas!G$1207) -> 0 | J64: =+IF($F$22=FALSE,0,Tablas!H$1207) -> 0
D65: Anexo: Trasplante Organos | E65: =IF($F$23=FALSE,0,Tablas!C$1208) -> 82.5 | F65: =IF($F$23=FALSE,0,Tablas!D$1208) -> 82.5 | G65: =IF($F$23=FALSE,0,Tablas!E$1208) -> 82.5 | H65: =IF($F$23=FALSE,0,Tablas!F$1208) -> 82.5 | I65: =IF($F$23=FALSE,0,Tablas!G$1208) -> 82.5 | J65: =IF($F$23=FALSE,0,Tablas!H$1208) -> 82.5
D66: Anexo: Eliminacion de Deducible | E66: 0 | F66: 0 | G66: 0 | H66: 0 | I66: 0 | J66: 0
D67: PRIMA NETA | E67: =SUM(E61:E66) -> 1777.05 | F67: =SUM(F61:F66) -> 1714.625 | G67: =SUM(G61:G66) -> 1599.95 | H67: 1113.475 | I67: 840.125 | J67: 627.825
E68: 0 | F68: 0 | G68: 0 | H68: 0 | I68: 0 | J68: 0
D69: Costo Administrativo Anual | E69: 75 | F69: 75 | G69: 75 | H69: 75 | I69: 75 | J69: 75
D70: IVA (12%) | E70: =+(E67+E68+E69)*12% -> 222.246 | F70: =+(F67+F68+F69)*12% -> 214.755 | G70: =+(G67+G68+G69)*12% -> 200.994 | H70: 142.617 | I70: 109.815 | J70: =+(J67+J68+J69)*12% -> 84.339
D71: (1ra Cuota) | E71: =SUM(E67:E70) -> 2074.296 | F71: 2004.38 | G71: 1875.944 | H71: 1331.092 | I71: 1024.94 | J71: 787.164
D72: (2da a 4ta Cuota) | E72: =E67+E68+E70-(E69*0.12) -> 1990.296 | F72: =F67+F68+F70-(F69*0.12) -> 1920.38 | G72: =G67+G68+G70-(G69*0.12) -> 1791.944 | H72: 1247.092 | I72: 940.94 | J72: 703.164
D73: TOTAL | E73: =E71+E72*3 -> 8045.184 | F73: =F71+F72*3 -> 7765.52 | G73: 7251.776 | H73: 5072.368 | I73: 3847.76 | J73: 2896.656
D76: Tarifas en US $ - Efectivas partir del 1ro de enero de 2023
D77: Este presupuesto solamente tiene carácter informativo y en ningún momento expresa compromiso legal para suministrarle cobertura de seguro. La emisión de una póliza de seguro Bupa está sujeta a todas las evaluaciones de riesgo por parte de Bupa y a la recepción de todos los pagos de prima requeridos.
D81: Bupa Guatemala, Compañía de Seguros, S.A.
D82: 5 Avenida 5-55 Zona 14, Europlaza World Business Center, Torre 3, Nivel 11, Guatemala
D83: PBX: 2300-8000 / www.bupasalud.com / servicioguatemala@bupalatinamerica.com

Sheet Classic Care
D8: Cotización de Seguro Médico Internacional
D9: Bupa Classic Care
A10: BUPA CLASSIC CARE
D12: Nombre del Asegurado: | E12: =+'INGRESO DE DATOS'!$D$12 -> Nombre
D14: Intermediario: | E14: =+'INGRESO DE DATOS'!$D$23 -> Agente / Agencia
D16: Fecha: | E16: =+TODAY() -> 2022-12-20 | G16: =IF('INGRESO DE DATOS'!G18>0,"Descuento","") ->  | H16: =IF('INGRESO DE DATOS'!G18>0,'INGRESO DE DATOS'!G18,"") -> 
F18: Numero de Adultos: | G18: =+'INGRESO DE DATOS'!$G$14 -> 2 | I18: Edad de Titular: | J18: =+'INGRESO DE DATOS'!$G$16 -> 32
F20: Numero de Hijos: | G20: =+'INGRESO DE DATOS'!$J$14 -> 2 | I20: Edad de Conyuge: | J20: =+'INGRESO DE DATOS'!$J$16 -> 46
H22: Complicaciones de Maternidad (+ $500,000)
F23: FALSE
F24: FALSE | H24: Trasplante de Órganos (+ $500,000)
F25: FALSE
H26: Eliminación de Deducible
D28: Deducibles
E29: PLAN 1 | F29: PLAN 2 | G29: PLAN 3 | H29: PLAN 4 | I29: PLAN 5 | J29: PLAN 6
D30: Dentro del pais de residencia | E30: n/a | F30: 1000 | G30: 2000 | H30: 5000 | I30: 10000 | J30: 20000
D31: Fuera del pais de residencia | E31: n/a | F31: 2000 | G31: 3000 | H31: 5000 | I31: 10000 | J31: 20000
D33: Tarifas Anuales
D34: Prima Titular | E34: n/a | F34: =VLOOKUP($J$18,Tablas!$A$487:$H$549,4,TRUE) -> 4087 | G34: =VLOOKUP($J$18,Tablas!$A$487:$H$549,5,TRUE) -> 3364 | H34: =VLOOKUP($J$18,Tablas!$A$487:$H$549,6,TRUE) -> 2176 | I34: =VLOOKUP($J$18,Tablas!$A$487:$H$549,7,TRUE) -> 1550 | J34: =VLOOKUP($J$18,Tablas!$A$487:$H$549,8,TRUE) -> 1101
D35: Prima Cónyuge | E35: n/a | F35: =IF($G$18=1,0,(VLOOKUP($J$20,Tablas!$A$487:$H$549,4,TRUE))) -> 5880 | G35: =IF($G$18=1,0,(VLOOKUP($J$20,Tablas!$A$487:$H$549,5,TRUE))) -> 5031 | H35: =IF($G$18=1,0,(VLOOKUP($J$20,Tablas!$A$487:$H$549,6,TRUE))) -> 3306 | I35: =IF($G$18=1,0,(VLOOKUP($J$20,Tablas!$A$487:$H$549,7,TRUE))) -> 2266 | J35: =IF($G$18=1,0,(VLOOKUP($J$20,Tablas!$A$487:$H$549,8,TRUE))) -> 1581
D36: Primas Hijos | E36: n/a | F36: =IF($G$20=0,0,(VLOOKUP($G$20,Tablas!$A$550:$H$552,4,TRUE))) -> 2735 | G36: =IF($G$20=0,0,(VLOOKUP($G$20,Tablas!$A$550:$H$552,5,TRUE))) -> 1419 | H36: =IF($G$20=0,0,(VLOOKUP($G$20,Tablas!$A$550:$H$552,6,TRUE))) -> 1105 | I36: =IF($G$20=0,0,(VLOOKUP($G$20,Tablas!$A$550:$H$552,7,TRUE))) -> 779 | J36: =IF($G$20=0,0,(VLOOKUP($G$20,Tablas!$A$550:$H$552,8,TRUE))) -> 539
D37: Anexo: Complicaciones de Maternidad | E37: n/a | F37: =+IF($F$23=FALSE,0,Tablas!D$553) -> 0 | G37: =+IF($F$23=FALSE,0,Tablas!E$553) -> 0 | H37: =+IF($F$23=FALSE,0,Tablas!F$553) -> 0 | I37: =+IF($F$23=FALSE,0,Tablas!G$553) -> 0 | J37: =+IF($F$23=FALSE,0,Tablas!H$553) -> 0
D38: Anexo: Trasplante Organos | E38: n/a | F38: =IF($F$24=FALSE,0,Tablas!D$554) -> 0 | G38: =IF($F$24=FALSE,0,Tablas!E$554) -> 0 | H38: =IF($F$24=FALSE,0,Tablas!F$554) -> 0 | I38: =IF($F$24=FALSE,0,Tablas!G$554) -> 0 | J38: =IF($F$24=FALSE,0,Tablas!H$554) -> 0
D39: Anexo: Eliminacion de Deducible | E39: n/a | F39: =IF($F$25=FALSE,0,Tablas!D$555) -> 0 | G39: =IF($F$25=FALSE,0,Tablas!E$555) -> 0 | H39: =IF($F$25=FALSE,0,Tablas!F$555) -> 0 | I39: =IF($F$25=FALSE,0,Tablas!G$555) -> 0 | J39: =IF($F$25=FALSE,0,Tablas!H$555) -> 0
D40: PRIMA NETA | E40: n/a | F40: =SUM(F34:F39) -> 12702 | G40: =SUM(G34:G39) -> 9814 | H40: 6587 | I40: 4595 | J40: 3221
D41: =IF('INGRESO DE DATOS'!G18>0,"Descuento","") ->  | E41: n/a | F41: =IF('INGRESO DE DATOS'!$G$18>0,-(F34+F35+F36)*'INGRESO DE DATOS'!$G$18,0) -> 0 | G41: =IF('INGRESO DE DATOS'!$G$18>0,-(G34+G35+G36)*'INGRESO DE DATOS'!$G$18,0) -> 0 | H41: =IF('INGRESO DE DATOS'!$G$18>0,-(H34+H35+H36)*'INGRESO DE DATOS'!$G$18,0) -> 0 | I41: =IF('INGRESO DE DATOS'!$G$18>0,-(I34+I35+I36)*'INGRESO DE DATOS'!$G$18,0) -> 0 | J41: =IF('INGRESO DE DATOS'!$G$18>0,-(J34+J35+J36)*'INGRESO DE DATOS'!$G$18,0) -> 0
D42: Costo Administrativo Anual | E42: n/a | F42: 75 | G42: 75 | H42: 75 | I42: 75 | J42: 75
D43: IVA (12%) | E43: n/a | F43: =+(F40+F41+F42)*12% -> 1533.24 | G43: =+(G40+G41+G42)*12% -> 1186.68 | H43: 799.44 | I43: 560.4 | J43: =+(J40+J41+J42)*12% -> 395.52
D44: TOTAL | E44: n/a | F44: =SUM(F40:F43) -> 14310.24 | G44: =SUM(G40:G43) -> 11075.68 | H44: =SUM(H40:H43) -> 7461.44 | I44: =SUM(I40:I43) -> 5230.4 | J44: =SUM(J40:J43) -> 3691.52
D46: Tarifas Semestrales
D47: Prima Titular | E47: n/a | F47: =VLOOKUP($J$18,Tablas!$A$559:$H$621,4,TRUE) -> 2166.11 | G47: =VLOOKUP($J$18,Tablas!$A$559:$H$621,5,TRUE) -> 1782.92 | H47: =VLOOKUP($J$18,Tablas!$A$559:$H$621,6,TRUE) -> 1153.28 | I47: =VLOOKUP($J$18,Tablas!$A$559:$H$621,7,TRUE) -> 821.5 | J47: =VLOOKUP($J$18,Tablas!$A$559:$H$621,8,TRUE) -> 583.53
D48: Prima Cónyuge | E48: n/a | F48: =IF($G$18=1,0,(VLOOKUP($J$20,Tablas!$A$559:$H$621,4,TRUE))) -> 3116.4 | G48: =IF($G$18=1,0,(VLOOKUP($J$20,Tablas!$A$559:$H$621,5,TRUE))) -> 2666.43 | H48: =IF($G$18=1,0,(VLOOKUP($J$20,Tablas!$A$559:$H$621,6,TRUE))) -> 1752.18 | I48: =IF($G$18=1,0,(VLOOKUP($J$20,Tablas!$A$559:$H$621,7,TRUE))) -> 1200.98 | J48: =IF($G$18=1,0,(VLOOKUP($J$20,Tablas!$A$559:$H$621,8,TRUE))) -> 837.93
D49: Primas Hijos | E49: n/a | F49: =IF($G$20=0,0,(VLOOKUP($G$20,Tablas!$A$622:$H$624,4,TRUE))) -> 1449.55 | G49: =IF($G$20=0,0,(VLOOKUP($G$20,Tablas!$A$622:$H$624,5,TRUE))) -> 752.07 | H49: =IF($G$20=0,0,(VLOOKUP($G$20,Tablas!$A$622:$H$624,6,TRUE))) -> 585.65 | I49: =IF($G$20=0,0,(VLOOKUP($G$20,Tablas!$A$622:$H$624,7,TRUE))) -> 412.87 | J49: =IF($G$20=0,0,(VLOOKUP($G$20,Tablas!$A$622:$H$624,8,TRUE))) -> 285.67
D50: Anexo: Complicaciones de Maternidad | E50: n/a | F50: =+IF($F$23=FALSE,0,Tablas!D$625) -> 0 | G50: =+IF($F$23=FALSE,0,Tablas!E$625) -> 0 | H50: =+IF($F$23=FALSE,0,Tablas!F$625) -> 0 | I50: =+IF($F$23=FALSE,0,Tablas!G$625) -> 0 | J50: =+IF($F$23=FALSE,0,Tablas!H$625) -> 0
D51: Anexo: Trasplante Organos | E51: n/a | F51: =IF($F$24=FALSE,0,Tablas!D$626) -> 0 | G51: =IF($F$24=FALSE,0,Tablas!E$626) -> 0 | H51: =IF($F$24=FALSE,0,Tablas!F$626) -> 0 | I51: =IF($F$24=FALSE,0,Tablas!G$626) -> 0 | J51: =IF($F$24=FALSE,0,Tablas!H$626) -> 0
D52: Anexo: Eliminacion de Deducible | E52: n/a | F52: =IF($F$25=FALSE,0,Tablas!D$627) -> 0 | G52: =IF($F$25=FALSE,0,Tablas!E$627) -> 0 | H52: =IF($F$25=FALSE,0,Tablas!F$627) -> 0 | I52: =IF($F$25=FALSE,0,Tablas!G$627) -> 0 | J52: =IF($F$25=FALSE,0,Tablas!H$627) -> 0
D53: PRIMA NETA | E53: n/a | F53: =SUM(F47:F52) -> 6732.06 | G53: =SUM(G47:G52) -> 5201.42 | H53: 3491.11 | I53: 2435.35 | J53: 1707.13
D54: =IF('INGRESO DE DATOS'!G18>0,"Descuento","") ->  | E54: n/a | F54: =IF('INGRESO DE DATOS'!$G$18>0,-(F47+F48+F49)*'INGRESO DE DATOS'!$G$18,0) -> 0 | G54: =IF('INGRESO DE DATOS'!$G$18>0,-(G47+G48+G49)*'INGRESO DE DATOS'!$G$18,0) -> 0 | H54: =IF('INGRESO DE DATOS'!$G$18>0,-(H47+H48+H49)*'INGRESO DE DATOS'!$G$18,0) -> 0 | I54: =IF('INGRESO DE DATOS'!$G$18>0,-(I47+I48+I49)*'INGRESO DE DATOS'!$G$18,0) -> 0 | J54: =IF('INGRESO DE DATOS'!$G$18>0,-(J47+J48+J49)*'INGRESO DE DATOS'!$G$18,0) -> 0
D55: Costo Administrativo Anual | E55: n/a | F55: 75 | G55: 75 | H55: 75 | I55: 75 | J55: 75
D56: IVA (12%) | E56: n/a | F56: =+(F53+F54+F55)*12% -> 816.8472 | G56: =+(G53+G54+G55)*12% -> 633.1704 | H56: 427.9332 | I56: 301.242 | J56: =+(J53+J54+J55)*12% -> 213.8556
D57: TOTAL (1ra Cuota) | E57: n/a | F57: =SUM(F53:F56) -> 7623.9072 | G57: =SUM(G53:G56) -> 5909.5904 | H57: =SUM(H53:H56) -> 3994.0432 | I57: =SUM(I53:I56) -> 2811.592 | J57: =SUM(J53:J56) -> 1995.9856
D58: TOTAL (2da Cuota) | E58: n/a | F58: =F53+F54+F56-(F55*0.12) -> 7539.9072 | G58: =G53+G54+G56-(G55*0.12) -> 5825.5904 | H58: 3910.0432 | I58: 2727.592 | J58: =J53+J54+J56-(J55*0.12) -> 1911.9856
D60: Tarifas Trimestrales
D61: Prima Titular | E61: n/a | F61: =VLOOKUP($J$18,Tablas!$A$1065:$H$1127,4,TRUE) -> 1123.925 | G61: =VLOOKUP($J$18,Tablas!$A$1065:$H$1127,5,TRUE) -> 925.1 | H61: =VLOOKUP($J$18,Tablas!$A$1065:$H$1127,6,TRUE) -> 598.4 | I61: =VLOOKUP($J$18,Tablas!$A$1065:$H$1127,7,TRUE) -> 426.25 | J61: =VLOOKUP($J$18,Tablas!$A$1065:$H$1127,8,TRUE) -> 302.775
D62: Prima Cónyuge | E62: n/a | F62: =IF($G$18=1,0,(VLOOKUP($J$20,Tablas!$A$1065:$H$1127,4,TRUE))) -> 1617 | G62: =IF($G$18=1,0,(VLOOKUP($J$20,Tablas!$A$1065:$H$1127,5,TRUE))) -> 1383.525 | H62: =IF($G$18=1,0,(VLOOKUP($J$20,Tablas!$A$1065:$H$1127,6,TRUE))) -> 909.15 | I62: =IF($G$18=1,0,(VLOOKUP($J$20,Tablas!$A$1065:$H$1127,7,TRUE))) -> 623.15 | J62: =IF($G$18=1,0,(VLOOKUP($J$20,Tablas!$A$1065:$H$1127,8,TRUE))) -> 434.775
D63: Primas Hijos | E63: n/a | F63: =IF($G$20=0,0,(VLOOKUP($G$20,Tablas!$A$1128:$H$1130,4,TRUE))) -> 752.125 | G63: =IF($G$20=0,0,(VLOOKUP($G$20,Tablas!$A$1128:$H$1130,5,TRUE))) -> 390.225 | H63: =IF($G$20=0,0,(VLOOKUP($G$20,Tablas!$A$1128:$H$1130,6,TRUE))) -> 303.875 | I63: =IF($G$20=0,0,(VLOOKUP($G$20,Tablas!$A$1128:$H$1130,7,TRUE))) -> 214.225 | J63: =IF($G$20=0,0,(VLOOKUP($G$20,Tablas!$A$1128:$H$1130,8,TRUE))) -> 148.225
D64: Anexo: Complicaciones de Maternidad | E64: n/a | F64: =+IF($F$23=FALSE,0,Tablas!D$1131) -> 0 | G64: =+IF($F$23=FALSE,0,Tablas!E$1131) -> 0 | H64: =+IF($F$23=FALSE,0,Tablas!F$1131) -> 0 | I64: =+IF($F$23=FALSE,0,Tablas!G$1131) -> 0 | J64: =+IF($F$23=FALSE,0,Tablas!H$1131) -> 0
D65: Anexo: Trasplante Organos | E65: n/a | F65: =IF($F$24=FALSE,0,Tablas!D$1132) -> 0 | G65: =IF($F$24=FALSE,0,Tablas!E$1132) -> 0 | H65: =IF($F$24=FALSE,0,Tablas!F$1132) -> 0 | I65: =IF($F$24=FALSE,0,Tablas!G$1132) -> 0 | J65: =IF($F$24=FALSE,0,Tablas!H$1132) -> 0
D66: Anexo: Eliminacion de Deducible | E66: n/a | F66: =IF($F$25=FALSE,0,Tablas!D$1133) -> 0 | G66: =IF($F$25=FALSE,0,Tablas!E$1133) -> 0 | H66: =IF($F$25=FALSE,0,Tablas!F$1133) -> 0 | I66: =IF($F$25=FALSE,0,Tablas!G$1133) -> 0 | J66: =IF($F$25=FALSE,0,Tablas!H$1133) -> 0
D67: PRIMA NETA | E67: n/a | F67: =SUM(F61:F66) -> 3493.05 | G67: =SUM(G61:G66) -> 2698.85 | H67: 1811.425 | I67: 1263.625 | J67: 885.775
D68: =IF('INGRESO DE DATOS'!G34>0,"Descuento","") ->  | E68: n/a | F68: =IF('INGRESO DE DATOS'!$G$18>0,-(F61+F62+F63)*'INGRESO DE DATOS'!$G$18,0) -> 0 | G68: =IF('INGRESO DE DATOS'!$G$18>0,-(G61+G62+G63)*'INGRESO DE DATOS'!$G$18,0) -> 0 | H68: =IF('INGRESO DE DATOS'!$G$18>0,-(H61+H62+H63)*'INGRESO DE DATOS'!$G$18,0) -> 0 | I68: =IF('INGRESO DE DATOS'!$G$18>0,-(I61+I62+I63)*'INGRESO DE DATOS'!$G$18,0) -> 0 | J68: =IF('INGRESO DE DATOS'!$G$18>0,-(J61+J62+J63)*'INGRESO DE DATOS'!$G$18,0) -> 0
D69: Costo Administrativo Anual | E69: n/a | F69: 75 | G69: 75 | H69: 75 | I69: 75 | J69: 75
D70: IVA (12%) | E70: n/a | F70: =+(F67+F68+F69)*12% -> 428.166 | G70: =+(G67+G68+G69)*12% -> 332.862 | H70: 226.371 | I70: 160.635 | J70: =+(J67+J68+J69)*12% -> 115.293
D71: TOTAL (1ra Cuota) | E71: n/a | F71: =SUM(F67:F70) -> 3996.216 | G71: =SUM(G67:G70) -> 3106.712 | H71: =SUM(H67:H70) -> 2112.796 | I71: =SUM(I67:I70) -> 1499.26 | J71: =SUM(J67:J70) -> 1076.068
D72: TOTAL (2da a 4ta Cuota) | E72: n/a | F72: =F67+F68+F70-(F69*0.12) -> 3912.216 | G72: =G67+G68+G70-(G69*0.12) -> 3022.712 | H72: 2028.796 | I72: 1415.26 | J72: =J67+J68+J70-(J69*0.12) -> 992.068
D74: Tarifas en US $ - Efectivas partir del 1ro de enero de 2023
D75: Este presupuesto solamente tiene carácter informativo y en ningún momento expresa compromiso legal para suministrarle cobertura de seguro. La emisión de una póliza de seguro Bupa está sujeta a todas las evaluaciones de riesgo por parte de Bupa y a la recepción de todos los pagos de prima requeridos.

Sheet Resumen tarifas anuales
A1: Cotización de Seguro Médico Internacional - BUPA Guatemala
C7: Nombre del Asegurado: | D7: =+'INGRESO DE DATOS'!$D$12 -> Nombre
C9: Intermediario: | D9: =+'INGRESO DE DATOS'!$D$23 -> Agente / Agencia
C11: Fecha: | D11: =+TODAY() -> 2022-12-20 | F11: =IF('INGRESO DE DATOS'!G18>0,"Descuento","") ->  | G11: =IF('INGRESO DE DATOS'!G18>0,'INGRESO DE DATOS'!G18,"") -> 
E13: Numero de Adultos: | F13: =+'INGRESO DE DATOS'!$G$14 -> 2 | H13: Edad de Titular: | I13: =+'INGRESO DE DATOS'!$G$16 -> 32
E15: Numero de Hijos: | F15: =+'INGRESO DE DATOS'!$J$14 -> 2 | H15: Edad de Conyuge: | I15: =+'INGRESO DE DATOS'!$J$16 -> 46
C20: COMPLETE CARE
C21: Deducibles
D22: PLAN 1 | E22: PLAN 2 | F22: PLAN 3 | G22: PLAN 4 | H22: PLAN 5 | I22: PLAN 6
C23: Dentro del pais de residencia | D23: n/a | E23: 1000 | F23: 2000 | G23: 5000 | H23: 10000 | I23: 20000
C24: Fuera del pais de residencia | D24: n/a | E24: 2000 | F24: 3000 | G24: 5000 | H24: 10000 | I24: 20000
C27: Tarifas Anuales
C28: Complete Care | E28: =+Complete!F38 -> 43729.28 | F28: =+Complete!G38 -> 31547.04 | G28: =+Complete!H38 -> 23381.12 | H28: =+Complete!I38 -> 17697.12 | I28: =+Complete!J38 -> 13496
C31: Tarifas Semestrales
C32: Complete Care | D32: 1ra Cuota | E32: =+Complete!F49 -> 23215.9984 | F32: =+Complete!G49 -> 16759.4112 | G32: =+Complete!H49 -> 12431.4736 | H32: =+Complete!I49 -> 9418.9536 | I32: =+Complete!J49 -> 7192.36
D33: 2da Cuota | E33: =+Complete!F50 -> 23131.9984 | F33: =+Complete!G50 -> 16675.4112 | G33: =+Complete!H50 -> 12347.4736 | H33: =+Complete!I50 -> 9334.9536 | I33: =+Complete!J50 -> 7108.36
C35: Tarifas Trimestrales
C36: Complete Care | D36: 1ra Cuota | E36: =+Complete!F61 -> 12086.452 | F36: =+Complete!G61 -> 10124.9232 | G36: =+Complete!H61 -> 7546.8568 | H36: =+Complete!I61 -> 5798.9736 | I36: =+Complete!J61 -> 4421.1832
D37: 2da a 4ta Cuota | E37: =+Complete!F62 -> 12002.452 | F37: =+Complete!G62 -> 10040.9232 | G37: =+Complete!H62 -> 7462.8568 | H37: =+Complete!I62 -> 5714.9736 | I37: =+Complete!J62 -> 4337.1832
C40: SECURE CARE
C41: Deducibles
D42: PLAN 1 | E42: PLAN 2 | F42: PLAN 3 | G42: PLAN 4 | H42: PLAN 5 | I42: PLAN 6
C43: Dentro del pais de residencia | D43: n/a | E43: 1000 | F43: 2000 | G43: 5000 | H43: 10000 | I43: 20000
C44: Fuera del pais de residencia | D44: n/a | E44: 2000 | F44: 3000 | G44: 5000 | H44: 10000 | I44: 20000
C47: Tarifas Anuales
C48: Secure Care | E48: =+Secure!F41 -> 26173.28 | F48: =+Secure!G41 -> 20515.04 | G48: =+Secure!H41 -> 15480.64 | H48: =+Secure!I41 -> 13126.4 | I48: =+Secure!J41 -> 10000.48
C51: Tarifas Semestrales
C52: Secure Care | D52: 1ra Cuota | E52: =+Secure!F53 -> 13911.3184 | F52: =+Secure!G53 -> 10912.4512 | G52: =+Secure!H53 -> 8244.2192 | H52: =+Secure!I53 -> 6996.472 | I52: =+Secure!J53 -> 5339.7344
D53: 2da Cuota | E53: =+Secure!F54 -> 13827.3184 | F53: =+Secure!G54 -> 10828.4512 | G53: =+Secure!H54 -> 8160.2192 | H53: =+Secure!I54 -> 6912.472 | I53: =+Secure!J54 -> 5255.7344
C55: Tarifas Trimestrales
C56: Complete Care | D56: 1ra Cuota | E56: =+Secure!F66 -> 7344.232 | F56: =+Secure!G66 -> 5788.216 | G56: =+Secure!H66 -> 4403.756 | H56: =+Secure!I66 -> 3756.34 | I56: =+Secure!J66 -> 2896.712
D57: 2da a 4ta Cuota | E57: =+Secure!F67 -> 7260.232 | F57: =+Secure!G67 -> 5704.216 | G57: =+Secure!H67 -> 4319.756 | H57: =+Secure!I67 -> 3672.34 | I57: =+Secure!J67 -> 2812.712
C60: PREMIUM CARE
C61: Deducibles
D62: PLAN 1 | E62: PLAN 2 | F62: PLAN 3 | G62: PLAN 4 | H62: PLAN 5 | I62: PLAN 6
C63: Dentro del pais de residencia | D63: n/a | E63: 1000 | F63: 2000 | G63: 5000 | H63: 10000 | I63: 20000
C64: Fuera del pais de residencia | D64: n/a | E64: 2000 | F64: 3000 | G64: 5000 | H64: 10000 | I64: 20000
C67: Tarifas Anuales
C68: Premium Care | E68: =+Premium!F44 -> 27481.44 | F68: =+Premium!G44 -> 21454.72 | G68: =+Premium!H44 -> 16898.56 | H68: =+Premium!I44 -> 13898.08 | I68: =+Premium!J44 -> 11343.36
C71: Tarifas Semestrales
C72: Premium Care | D72: 1ra Cuota | E72: =+Premium!F57 -> 14604.6432 | F72: =+Premium!G57 -> 11410.4816 | G72: =+Premium!H57 -> 8995.7168 | H72: =+Premium!I57 -> 7405.4624 | I72: =+Premium!J57 -> 6051.4608
D73: 2da Cuota | E73: =+Premium!F58 -> 14520.6432 | F73: =+Premium!G58 -> 11326.4816 | G73: =+Premium!H58 -> 8911.7168 | H73: =+Premium!I58 -> 7321.4624 | I73: =+Premium!J58 -> 5967.4608
C75: Tarifas Trimestrales
C76: Premium Care | D76: 1ra Cuota | E76: =+Premium!F71 -> 7618.296 | F76: =+Premium!G71 -> 5960.948 | G76: =+Premium!H71 -> 4708.004 | H76: =+Premium!I71 -> 3882.872 | I76: =+Premium!J71 -> 3180.324
D77: 2da a 4ta Cuota | E77: =+Premium!F72 -> 7534.296 | F77: =+Premium!G72 -> 5876.948 | G77: =+Premium!H72 -> 4624.004 | H77: =+Premium!I72 -> 3798.872 | I77: =+Premium!J72 -> 3096.324
C80: ESSENTIAL CARE
C81: Deducibles
D82: PLAN 1 | E82: PLAN 2 | F82: PLAN 3 | G82: PLAN 4 | H82: PLAN 5 | I82: PLAN 6
C83: Dentro del pais de residencia | D83: 250 | E83: 250 | F83: 1000 | G83: 5000 | H83: 10000 | I83: 20000
C84: Fuera del pais de residencia | D84: 1000 | E84: 5000 | F84: 10000 | G84: 5000 | H84: 10000 | I84: 20000
C87: Tarifas Anuales
C88: Essentiial Care | D88: ='Bupa Essential Care'!E42 -> 7321.44 | E88: ='Bupa Essential Care'!F42 -> 7067.2 | F88: ='Bupa Essential Care'!G42 -> 6600.16 | G88: ='Bupa Essential Care'!H42 -> 4618.88 | H88: ='Bupa Essential Care'!I42 -> 3505.6 | I88: ='Bupa Essential Care'!J42 -> 2640.96
C91: Tarifas Semestrales
C92: Essential Care | D92: ='Bupa Essential Care'!E55 -> 3919.8432 | E92: ='Bupa Essential Care'!F55 -> 3785.096 | F92: ='Bupa Essential Care'!G55 -> 3537.5648 | G92: ='Bupa Essential Care'!H55 -> 2487.4864 | H92: ='Bupa Essential Care'!I55 -> 1897.448 | I92: ='Bupa Essential Care'!J55 -> 1439.1888
D93: ='Bupa Essential Care'!E56 -> 3835.8432 | E93: ='Bupa Essential Care'!F56 -> 3701.096 | F93: ='Bupa Essential Care'!G56 -> 3453.5648 | G93: ='Bupa Essential Care'!H56 -> 2403.4864 | H93: ='Bupa Essential Care'!I56 -> 1813.448 | I93: ='Bupa Essential Care'!J56 -> 1355.1888
C95: Tarifas Trimestrales
C96: Essential Care | D96: ='Bupa Essential Care'!E71 -> 2074.296 | E96: ='Bupa Essential Care'!F71 -> 2004.38 | F96: ='Bupa Essential Care'!G71 -> 1875.944 | G96: ='Bupa Essential Care'!H71 -> 1331.092 | H96: ='Bupa Essential Care'!I71 -> 1024.94 | I96: ='Bupa Essential Care'!J71 -> 787.164
D97: ='Bupa Essential Care'!E72 -> 1990.296 | E97: ='Bupa Essential Care'!F72 -> 1920.38 | F97: ='Bupa Essential Care'!G72 -> 1791.944 | G97: ='Bupa Essential Care'!H72 -> 1247.092 | H97: ='Bupa Essential Care'!I72 -> 940.94 | I97: ='Bupa Essential Care'!J72 -> 703.164
C100: CLASSIC CARE
C101: Deducibles
D102: PLAN 1 | E102: PLAN 2 | F102: PLAN 3 | G102: PLAN 4 | H102: PLAN 5 | I102: PLAN 6
C103: Dentro del pais de residencia | D103: n/a | E103: 1000 | F103: 2000 | G103: 5000 | H103: 10000 | I103: 20000
C104: Fuera del pais de residencia | D104: n/a | E104: 2000 | F104: 3000 | G104: 5000 | H104: 10000 | I104: 20000
C107: Tarifas Anuales
C108: Classic Care | E108: ='Classic Care'!F44 -> 14310.24 | F108: ='Classic Care'!G44 -> 11075.68 | G108: ='Classic Care'!H44 -> 7461.44 | H108: ='Classic Care'!I44 -> 5230.4 | I108: ='Classic Care'!J44 -> 3691.52
C111: Tarifas Semestrales
C112: Classic Care | D112: 1ra Cuota | E112: =+'Classic Care'!$F$57 -> 7623.9072 | F112: =+'Classic Care'!$G$57 -> 5909.5904 | G112: =+'Classic Care'!$H$57 -> 3994.0432 | H112: =+'Classic Care'!$I$57 -> 2811.592 | I112: =+'Classic Care'!$J$57 -> 1995.9856
D113: 2da Cuota | E113: =+'Classic Care'!$F$58 -> 7539.9072 | F113: =+'Classic Care'!$G$58 -> 5825.5904 | G113: =+'Classic Care'!$H$58 -> 3910.0432 | H113: =+'Classic Care'!$I$58 -> 2727.592 | I113: =+'Classic Care'!$J$58 -> 1911.9856
C115: Tarifas Trimestrales
C116: Classic Care | D116: 1ra Cuota | E116: =+'Classic Care'!$F$71 -> 3996.216 | F116: =+'Classic Care'!$G$71 -> 3106.712 | G116: =+'Classic Care'!$H$71 -> 2112.796 | H116: =+'Classic Care'!$I$71 -> 1499.26 | I116: =+'Classic Care'!$J$71 -> 1076.068
D117: 2da a 4ta Cuota | E117: =+'Classic Care'!$F$72 -> 3912.216 | F117: =+'Classic Care'!$G$72 -> 3022.712 | G117: =+'Classic Care'!$H$72 -> 2028.796 | H117: =+'Classic Care'!$I$72 -> 1415.26 | I117: =+'Classic Care'!$J$72 -> 992.068
C120: Tarifas en US $ - Efectivas a partir del 1ro de enero de 2023
C121: Este presupuesto solamente tiene carácter informativo y en ningún momento expresa compromiso legal para suministrarle cobertura de seguro. La emisión de una póliza de seguro Bupa está sujeta a todas las evaluaciones de riesgo por parte de Bupa y a la recepción de todos los pagos de prima requeridos.
C124: Bupa Guatemala, Compañía de Seguros, S.A.
C125: 5 Avenida 5-55 Zona 14, Europlaza World Business Center, Torre 3, Nivel 11, Guatemala
C126: PBX: 2300-8000 / www.bupasalud.com / servicioguatemala@bupalatinamerica.com

Sheet Tablas (hidden)
A2: BUPA COMPLETE GUATEMALA | J2: FACTOR SEMESTRAL : | L2: 0.53
A3: TARIFAS ANUALES | J3: FACTOR TRIMESTRAL : | L3: 0.275
A4: EDAD
C5: DW1 | D5: DW2 | E5: DW3 | F5: DW4 | G5: DW5 | H5: DW6
A6: 18 | B6: - 24 | C6: 19769 | D6: 12028 | E6: 8238 | F6: 5783 | G6: 3992 | H6: 3051 | J6: Descuento (15%) | L6: 1
A7: 25 | B7: - 29 | C7: 20759 | D7: 12602 | E7: 9147 | F7: 6426 | G7: 4379 | H7: 3365
A8: 30 | B8: - 34 | C8: 21668 | D8: 13182 | E8: 9802 | F8: 7149 | G8: 5322 | H8: 4071
A9: 35 | B9: - 39 | C9: 24218 | D9: 14748 | E9: 10958 | F9: 8028 | G9: 5945 | H9: 4540
A10: 40 | B10: - 44 | C10: 27430 | D10: 17132 | E10: 12028 | F10: 8914 | G10: 6570 | H10: 5006
A11: 45 | B11: - 49 | C11: 30644 | D11: 19113 | E11: 13428 | F11: 9954 | G11: 7353 | H11: 5632
A12: 50 | B12: - 54 | C12: 40445 | D12: 24958 | E12: 17712 | F12: 13088 | G12: 10480 | H12: 8058
A13: 55 | B13: - 59 | C13: 42996 | D13: 26604 | E13: 18863 | F13: 13970 | G13: 11181 | H13: 8525
A14: 60 | C14: 45633 | D14: 28913 | E14: 20513 | F14: 15896 | G14: 13293 | H14: 10712
A15: 61 | C15: 49010 | D15: 31053 | E15: 21998 | F15: 17020 | G15: 14310 | H15: 11496
A16: 62 | C16: 53622 | D16: 34018 | E16: 24054 | F16: 18627 | G16: 15635 | H16: 12587
A17: 63 | C17: 57000 | D17: 36160 | E17: 25617 | F17: 19832 | G17: 16656 | H17: 13370
A18: 64 | C18: 61695 | D18: 39125 | E18: 27678 | F18: 21438 | G18: 17985 | H18: 14466
A19: 65 | C19: 64655 | D19: 51153 | E19: 36160 | F19: 27135 | G19: 24004 | H19: 20405
A20: 66 | C20: 67540 | D20: 59469 | E20: 42010 | F20: 31547 | G20: 27914 | H20: 23688
A21: 67 | C21: 73800 | D21: 64906 | E21: 45881 | F21: 34436 | G21: 30492 | H21: 25880
A22: 68 | C22: 81624 | D22: 71906 | E22: 50820 | F22: 38130 | G22: 33774 | H22: 28694
A23: 69 | C23: 89775 | D23: 79073 | E23: 55847 | F23: 41985 | G23: 37136 | H23: 31505
A24: 70 | C24: 106253 | D24: 97355 | E24: 68033 | F24: 49366 | G24: 43234 | H24: 37058
A25: 71 | C25: 110454 | D25: 101145 | E25: 70673 | F25: 51297 | G25: 44955 | H25: 38544
A26: 72 | C26: 113583 | D26: 104027 | E26: 72730 | F26: 52740 | G26: 46204 | H26: 39639
A27: 73 | C27: 117700 | D27: 107817 | E27: 75368 | F27: 54670 | G27: 47922 | H27: 41123
A28: 74 | C28: 119840 | D28: 109794 | E28: 76684 | F28: 55712 | G28: 48784 | H28: 41828
A29: 75 | B29: o más | C29: 125032 | D29: 114570 | E29: 80058 | F29: 58115 | G29: 50896 | H29: 43624
A30: 1 | B30: Hijo | C30: 6674 | D30: 4205 | E30: 3050 | F30: 2333 | G30: 1958 | H30: 1409
A31: 2 | B31: Hijos | C31: 10462 | D31: 6674 | E31: 4862 | F31: 3698 | G31: 3051 | H31: 2272
A32: 3 | B32: Hijos o más | C32: 15242 | D32: 9719 | E32: 7086 | F32: 5464 | G32: 4457 | H32: 3290
A33: 1 | B33: Rider Comp. Maternidad | C33: 0 | D33: 0 | E33: 0 | F33: 225 | G33: 225 | H33: 225
A34: 1 | B34: Transplante de organos | C34: 0 | D34: 0 | E34: 0 | F34: 0 | G34: 0 | H34: 0
A36: TARIFAS SEMESTRALES
A37: EDAD
C38: DW1 | D38: DW2 | E38: DW3 | F38: DW4 | G38: DW5 | H38: DW6
A39: 18 | B39: - 24 | C39: =C6*$L$2 -> 10477.57 | D39: =D6*$L$2 -> 6374.84 | E39: 4366.14 | F39: 3064.99 | G39: 2115.76 | H39: 1617.03
A40: 25 | B40: - 29 | C40: =C7*$L$2 -> 11002.27 | D40: 6679.06 | E40: 4847.91 | F40: 3405.78 | G40: 2320.87 | H40: 1783.45
A41: 30 | B41: - 34 | C41: =C8*$L$2 -> 11484.04 | D41: 6986.46 | E41: 5195.06 | F41: 3788.97 | G41: 2820.66 | H41: 2157.63
A42: 35 | B42: - 39 | C42: =C9*$L$2 -> 12835.54 | D42: 7816.44 | E42: 5807.74 | F42: 4254.84 | G42: 3150.85 | H42: 2406.2
A43: 40 | B43: - 44 | C43: =C10*$L$2 -> 14537.9 | D43: 9079.96 | E43: 6374.84 | F43: 4724.42 | G43: 3482.1 | H43: 2653.18
A44: 45 | B44: - 49 | C44: =C11*$L$2 -> 16241.32 | D44: 10129.89 | E44: 7116.84 | F44: 5275.62 | G44: 3897.09 | H44: 2984.96
A45: 50 | B45: - 54 | C45: =C12*$L$2 -> 21435.85 | D45: 13227.74 | E45: 9387.36 | F45: 6936.64 | G45: 5554.4 | H45: 4270.74
A46: 55 | B46: - 59 | C46: =C13*$L$2 -> 22787.88 | D46: 14100.12 | E46: 9997.39 | F46: 7404.1 | G46: 5925.93 | H46: 4518.25
A47: 60 | C47: =C14*$L$2 -> 24185.49 | D47: 15323.89 | E47: 10871.89 | F47: 8424.88 | G47: 7045.29 | H47: 5677.36
A48: 61 | C48: =C15*$L$2 -> 25975.3 | D48: 16458.09 | E48: 11658.94 | F48: 9020.6 | G48: 7584.3 | H48: 6092.88
A49: 62 | C49: =C16*$L$2 -> 28419.66 | D49: 18029.54 | E49: 12748.62 | F49: 9872.31 | G49: 8286.55 | H49: 6671.11
A50: 63 | C50: =C17*$L$2 -> 30210 | D50: 19164.8 | E50: 13577.01 | F50: 10510.96 | G50: 8827.68 | H50: 7086.1
A51: 64 | C51: =C18*$L$2 -> 32698.35 | D51: 20736.25 | E51: 14669.34 | F51: 11362.14 | G51: 9532.05 | H51: 7666.98
A52: 65 | C52: =C19*$L$2 -> 34267.15 | D52: 27111.09 | E52: 19164.8 | F52: 14381.55 | G52: 12722.12 | H52: 10814.65
A53: 66 | C53: =C20*$L$2 -> 35796.2 | D53: 31518.57 | E53: 22265.3 | F53: 16719.91 | G53: 14794.42 | H53: 12554.64
A54: 67 | C54: =C21*$L$2 -> 39114 | D54: 34400.18 | E54: 24316.93 | F54: 18251.08 | G54: 16160.76 | H54: 13716.4
A55: 68 | C55: =C22*$L$2 -> 43260.72 | D55: 38110.18 | E55: 26934.6 | F55: 20208.9 | G55: 17900.22 | H55: 15207.82
A56: 69 | C56: =C23*$L$2 -> 47580.75 | D56: 41908.69 | E56: 29598.91 | F56: 22252.05 | G56: 19682.08 | H56: 16697.65
A57: 70 | C57: =C24*$L$2 -> 56314.09 | D57: 51598.15 | E57: 36057.49 | F57: 26163.98 | G57: 22914.02 | H57: 19640.74
A58: 71 | C58: =C25*$L$2 -> 58540.62 | D58: 53606.85 | E58: 37456.69 | F58: 27187.41 | G58: 23826.15 | H58: 20428.32
A59: 72 | C59: =C26*$L$2 -> 60198.99 | D59: 55134.31 | E59: 38546.9 | F59: 27952.2 | G59: 24488.12 | H59: 21008.67
A60: 73 | C60: =C27*$L$2 -> 62381 | D60: 57143.01 | E60: 39945.04 | F60: 28975.1 | G60: 25398.66 | H60: 21795.19
A61: 74 | C61: =C28*$L$2 -> 63515.2 | D61: 58190.82 | E61: 40642.52 | F61: 29527.36 | G61: 25855.52 | H61: 22168.84
A62: 75 | B62: o más | C62: =C29*$L$2 -> 66266.96 | D62: 60722.1 | E62: 42430.74 | F62: 30800.95 | G62: 26974.88 | H62: 23120.72
A63: 1 | B63: Hijo | C63: =C30*$L$2 -> 3537.22 | D63: 2228.65 | E63: 1616.5 | F63: 1236.49 | G63: 1037.74 | H63: 746.77
A64: 2 | B64: Hijos | C64: =C31*$L$2 -> 5544.86 | D64: 3537.22 | E64: 2576.86 | F64: 1959.94 | G64: 1617.03 | H64: 1204.16
A65: 3 | B65: Hijos o más | C65: =C32*$L$2 -> 8078.26 | D65: 5151.07 | E65: 3755.58 | F65: 2895.92 | G65: 2362.21 | H65: 1743.7
A66: 1 | B66: Rider Comp. Maternidad | C66: =+C33*$L$2 -> 0 | D66: 0 | E66: 0 | F66: 119.25 | G66: 119.25 | H66: 119.25
A67: 1 | B67: Transplante de organos | C67: 0 | D67: 0 | E67: 0 | F67: 0 | G67: 0 | H67: 0
A69: Other Product
A70: TARIFAS ANUALES
A71: EDAD
C72: DL1 | D72: DL2 | E72: DL3 | F72: DL4 | G72: DL5 | H72: DL6
A73: 18 | B73: - 24 | C73: 4794 | D73: 2952 | E73: 1949 | F73: 1401 | G73: 993 | H73: 779
A74: 25 | B74: - 29 | C74: 5028 | D74: 3097 | E74: 2156 | F74: 1553 | G74: 1103 | H74: 867
A75: 30 | B75: - 34 | C75: 5200 | D75: 3223 | E75: 2312 | F75: 1743 | G75: 1322 | H75: 1041
A76: 35 | B76: - 39 | C76: 5816 | D76: 3609 | E76: 2590 | F76: 1951 | G76: 1483 | H76: 1168
A77: 40 | B77: - 44 | C77: 6733 | D77: 4186 | E77: 2831 | F77: 2168 | G77: 1630 | H77: 1284
A78: 45 | B78: - 49 | C78: 7517 | D78: 4680 | E78: 3168 | F78: 2425 | G78: 1824 | H78: 1436
A79: 50 | B79: - 54 | C79: 9772 | D79: 5991 | E79: 4158 | F79: 3164 | G79: 2578 | H79: 2033
A80: 55 | B80: - 59 | C80: 10394 | D80: 6374 | E80: 4426 | F80: 3365 | G80: 2744 | H80: 2164
A81: 60 | C81: 11056 | D81: 6945 | E81: 4828 | F81: 3871 | G81: 3307 | H81: 2688
A82: 61 | C82: 11876 | D82: 7463 | E82: 5187 | F82: 4159 | G82: 3555 | H82: 2886
A83: 62 | C83: 12994 | D83: 8172 | E83: 5684 | F83: 4557 | G83: 3892 | H83: 3162
A84: 63 | C84: 13812 | D84: 8687 | E84: 6042 | F84: 4844 | G84: 4139 | H84: 3362
A85: 64 | C85: 14936 | D85: 9396 | E85: 6539 | F85: 5242 | G85: 4475 | H85: 3639
A86: 65 | C86: 15651 | D86: 12288 | E86: 8530 | F86: 6629 | G86: 5974 | H86: 5139
A87: 66 | C87: 16363 | D87: 14275 | E87: 9911 | F87: 7703 | G87: 6942 | H87: 5968
A88: 67 | C88: 17867 | D88: 15595 | E88: 10826 | F88: 8416 | G88: 7581 | H88: 6521
A89: 68 | C89: 19780 | D89: 17268 | E89: 11986 | F89: 9320 | G89: 8398 | H89: 7220
A90: 69 | C90: 21758 | D90: 18999 | E90: 13190 | F90: 10254 | G90: 9240 | H90: 7945
A91: 70 | C91: 25748 | D91: 23384 | E91: 16061 | F91: 12071 | G91: 10768 | H91: 9345
A92: 71 | C92: 26759 | D92: 24303 | E92: 16691 | F92: 12545 | G92: 11190 | H92: 9716
A93: 72 | C93: 27512 | D93: 24990 | E93: 17164 | F93: 12900 | G93: 11507 | H93: 9987
A94: 73 | C94: 28525 | D94: 25911 | E94: 17793 | F94: 13375 | G94: 11931 | H94: 10356
A95: 74 | C95: 29026 | D95: 26368 | E95: 18111 | F95: 13609 | G95: 12143 | H95: 10540
A96: 75 | B96: o más | C96: 30287 | D96: 27515 | E96: 18898 | F96: 14204 | G96: 12670 | H96: 11001
A97: 1 | B97: Hijo | C97: 1660 | D97: 1027 | E97: 758 | F97: 629 | G97: 527 | H97: 413
A98: 2 | B98: Hijos | C98: 2608 | D98: 1634 | E98: 1204 | F98: 999 | G98: 841 | H98: 656
A99: 3 | B99: Hijos o más | C99: 3798 | D99: 2395 | E99: 1766 | F99: 1465 | G99: 1234 | H99: 961
A100: 1 | B100: Rider Comp. Maternidad | C100: 0 | D100: 0 | E100: 0 | F100: 225 | G100: 225 | H100: 225
A101: 1 | B101: Transplante de organos | C101: 0 | D101: 0 | E101: 0 | F101: 0 | G101: 0 | H101: 0
A103: TARIFAS SEMESTRALES
A104: EDAD
C105: DL1 | D105: DL2 | E105: DL3 | F105: DL4 | G105: DL5 | H105: DL6
A106: 18 | B106: - 24 | C106: =+C73*$L$2 -> 2540.82 | D106: 1564.56 | E106: 1032.97 | F106: 742.53 | G106: 526.29 | H106: 412.87
A107: 25 | B107: - 29 | C107: 2664.84 | D107: 1641.41 | E107: 1142.68 | F107: 823.09 | G107: 584.59 | H107: 459.51
A108: 30 | B108: - 34 | C108: 2756 | D108: 1708.19 | E108: 1225.36 | F108: 923.79 | G108: 700.66 | H108: 551.73
A109: 35 | B109: - 39 | C109: 3082.48 | D109: 1912.77 | E109: 1372.7 | F109: 1034.03 | G109: 785.99 | H109: 619.04
A110: 40 | B110: - 44 | C110: 3568.49 | D110: 2218.58 | E110: 1500.43 | F110: 1149.04 | G110: 863.9 | H110: 680.52
A111: 45 | B111: - 49 | C111: 3984.01 | D111: 2480.4 | E111: 1679.04 | F111: 1285.25 | G111: 966.72 | H111: 761.08
A112: 50 | B112: - 54 | C112: 5179.16 | D112: 3175.23 | E112: 2203.74 | F112: 1676.92 | G112: 1366.34 | H112: 1077.49
A113: 55 | B113: - 59 | C113: 5508.82 | D113: 3378.22 | E113: 2345.78 | F113: 1783.45 | G113: 1454.32 | H113: 1146.92
A114: 60 | C114: 5859.68 | D114: 3680.85 | E114: 2558.84 | F114: 2051.63 | G114: 1752.71 | H114: 1424.64
A115: 61 | C115: 6294.28 | D115: 3955.39 | E115: 2749.11 | F115: 2204.27 | G115: 1884.15 | H115: 1529.58
A116: 62 | C116: =+C83*$L$2 -> 6886.82 | D116: 4331.16 | E116: 3012.52 | F116: 2415.21 | G116: 2062.76 | H116: 1675.86
A117: 63 | C117: 7320.36 | D117: 4604.11 | E117: 3202.26 | F117: 2567.32 | G117: 2193.67 | H117: 1781.86
A118: 64 | C118: 7916.08 | D118: 4979.88 | E118: 3465.67 | F118: 2778.26 | G118: 2371.75 | H118: 1928.67
A119: 65 | C119: 8295.03 | D119: 6512.64 | E119: 4520.9 | F119: 3513.37 | G119: 3166.22 | H119: 2723.67
A120: 66 | C120: 8672.39 | D120: 7565.75 | E120: 5252.83 | F120: 4082.59 | G120: 3679.26 | H120: 3163.04
A121: 67 | C121: 9469.51 | D121: 8265.35 | E121: 5737.78 | F121: 4460.48 | G121: 4017.93 | H121: 3456.13
A122: 68 | C122: 10483.4 | D122: 9152.04 | E122: 6352.58 | F122: 4939.6 | G122: 4450.94 | H122: 3826.6
A123: 69 | C123: 11531.74 | D123: 10069.47 | E123: 6990.7 | F123: 5434.62 | G123: 4897.2 | H123: 4210.85
A124: 70 | C124: 13646.44 | D124: 12393.52 | E124: 8512.33 | F124: 6397.63 | G124: 5707.04 | H124: 4952.85
A125: 71 | C125: 14182.27 | D125: 12880.59 | E125: 8846.23 | F125: 6648.85 | G125: 5930.7 | H125: 5149.48
A126: 72 | C126: =+C93*$L$2 -> 14581.36 | D126: 13244.7 | E126: 9096.92 | F126: 6837 | G126: 6098.71 | H126: 5293.11
A127: 73 | C127: 15118.25 | D127: 13732.83 | E127: 9430.29 | F127: 7088.75 | G127: 6323.43 | H127: 5488.68
A128: 74 | C128: 15383.78 | D128: 13975.04 | E128: 9598.83 | F128: 7212.77 | G128: 6435.79 | H128: 5586.2
A129: 75 | B129: o más | C129: 16052.11 | D129: 14582.95 | E129: 10015.94 | F129: 7528.12 | G129: 6715.1 | H129: 5830.53
A130: 1 | B130: Hijo | C130: 879.8 | D130: 544.31 | E130: 401.74 | F130: 333.37 | G130: 279.31 | H130: 218.89
A131: 2 | B131: Hijos | C131: 1382.24 | D131: 866.02 | E131: 638.12 | F131: 529.47 | G131: 445.73 | H131: 347.68
A132: 3 | B132: Hijos o más | C132: 2012.94 | D132: 1269.35 | E132: 935.98 | F132: 776.45 | G132: 654.02 | H132: 509.33
A133: 1 | B133: Rider Comp. Maternidad | C133: 0 | D133: 0 | E133: 0 | F133: 119.25 | G133: 119.25 | H133: 119.25
A134: 1 | B134: Transplante de organos | C134: 0 | D134: 0 | E134: 0 | F134: 0 | G134: 0 | H134: 0
A136: BUPA SECURE GUATEMALA
A137: TARIFAS ANUALES
A138: EDAD
C139: CW1 | D139: CW2 | E139: CW3 | F139: CW4 | G139: CW5 | H139: CW6
A140: 18 | B140: - 24 | C140: 6972 | D140: 5882 | E140: 4605 | F140: 3434 | G140: 2919 | H140: 2187
A141: 25 | B141: - 29 | C141: 7736 | D141: 6459 | E141: 5181 | F141: 3864 | G141: 3222 | H141: 2432
A142: 30 | B142: - 34 | C142: 8891 | D142: 7419 | E142: 6076 | F142: 4490 | G142: 3766 | H142: 2859
A143: 35 | B143: - 39 | C143: 9846 | D143: 8187 | E143: 6843 | F143: 4991 | G143: 4192 | H143: 3156
A144: 40 | B144: - 44 | C144: 11127 | D144: 9142 | E144: 7803 | F144: 5615 | G144: 4739 | H144: 3586
A145: 45 | B145: - 49 | C145: 12915 | D145: 10552 | E145: 9142 | F145: 6548 | G145: 5530 | H145: 4132
A146: 50 | B146: - 54 | C146: 14129 | D146: 11512 | E146: 10041 | F146: 7173 | G146: 6016 | H146: 4558
A147: 55 | B147: - 59 | C147: 16624 | D147: 13554 | E147: 12017 | F147: 8480 | G147: 7169 | H147: 5349
A148: 60 | C148: 17583 | D148: 14195 | E148: 12851 | F148: 8978 | G148: 7596 | H148: 5651
A149: 61 | C149: 19756 | D149: 15984 | E149: 14450 | F149: 10164 | G149: 8506 | H149: 6380
A150: 62 | C150: 21993 | D150: 17772 | E150: 16048 | F150: 11286 | G150: 9478 | H150: 7108
A151: 63 | C151: 24166 | D151: 19503 | E151: 17646 | F151: 12407 | G151: 10450 | H151: 7835
A152: 64 | C152: 26403 | D152: 21290 | E152: 19307 | F152: 13527 | G152: 11417 | H152: 8566
A153: 65 | C153: 26471 | D153: 21354 | E153: 19436 | F153: 13654 | G153: 11483 | H153: 8566
A154: 66 | C154: 26595 | D154: 21354 | E154: 19628 | F154: 13714 | G154: 11542 | H154: 8566
A155: 67 | C155: 29532 | D155: 23717 | E155: 21864 | F155: 15210 | G155: 12815 | H155: 9539
A156: 68 | C156: 32477 | D156: 26082 | E156: 24038 | F156: 16768 | G156: 14093 | H156: 10512
A157: 69 | C157: 34012 | D157: 27298 | E157: 25126 | F157: 17519 | G157: 14760 | H157: 10997
A158: 70 | C158: 34203 | D158: 27363 | E158: 25510 | F158: 17705 | G158: 14879 | H158: 11055
A159: 71 | C159: 38548 | D159: 30754 | E159: 28770 | F159: 19947 | G159: 16764 | H159: 12455
A160: 72 | C160: 42833 | D160: 34203 | E160: 31967 | F160: 22127 | G160: 18585 | H160: 13848
A161: 73 | C161: 47116 | D161: 37656 | E161: 35160 | F161: 24375 | G161: 20468 | H161: 15246
A162: 74 | C162: 51398 | D162: 41044 | E162: 38358 | F162: 26615 | G162: 22349 | H162: 16644
A163: 75 | B163: o más | C163: 56128 | D163: 44752 | E163: 42068 | F163: 29109 | G163: 24416 | H163: 18162
A164: 1 | B164: Hijo | C164: 3135 | D164: 2813 | E164: 1666 | F164: 1374 | G164: 1157 | H164: 855
A165: 2 | B165: Hijos | C165: 5181 | D165: 4798 | E165: 2499 | F165: 2184 | G165: 1824 | H165: 1338
A166: 3 | B166: Hijos o más | C166: 7546 | D166: 7032 | E166: 3584 | F166: 3182 | G166: 2673 | H166: 2008
A167: 1 | B167: Rider Comp. Maternidad | C167: 0 | D167: 225 | E167: 225 | F167: 225 | G167: 225 | H167: 225
A168: 1 | B168: Transplante de organos | C168: 0 | D168: 0 | E168: 0 | F168: 0 | G168: 0 | H168: 0
A170: TARIFAS SEMESTRALES
A171: EDAD
C172: CW1 | D172: CW2 | E172: CW3 | F172: CW4 | G172: CW5 | H172: CW6
A173: 18 | B173: - 24 | C173: =C140*$L$2 -> 3695.16 | D173: =D140*$L$2 -> 3117.46 | E173: 2440.65 | F173: 1820.02 | G173: 1547.07 | H173: 1159.11
A174: 25 | B174: - 29 | C174: =C141*$L$2 -> 4100.08 | D174: 3423.27 | E174: 2745.93 | F174: 2047.92 | G174: 1707.66 | H174: 1288.96
A175: 30 | B175: - 34 | C175: =C142*$L$2 -> 4712.23 | D175: 3932.07 | E175: 3220.28 | F175: 2379.7 | G175: 1995.98 | H175: 1515.27
A176: 35 | B176: - 39 | C176: =C143*$L$2 -> 5218.38 | D176: 4339.11 | E176: 3626.79 | F176: 2645.23 | G176: 2221.76 | H176: 1672.68
A177: 40 | B177: - 44 | C177: =C144*$L$2 -> 5897.31 | D177: 4845.26 | E177: 4135.59 | F177: 2975.95 | G177: 2511.67 | H177: 1900.58
A178: 45 | B178: - 49 | C178: =C145*$L$2 -> 6844.95 | D178: 5592.56 | E178: 4845.26 | F178: 3470.44 | G178: 2930.9 | H178: 2189.96
A179: 50 | B179: - 54 | C179: =C146*$L$2 -> 7488.37 | D179: 6101.36 | E179: 5321.73 | F179: 3801.69 | G179: 3188.48 | H179: 2415.74
A180: 55 | B180: - 59 | C180: =C147*$L$2 -> 8810.72 | D180: 7183.62 | E180: 6369.01 | F180: 4494.4 | G180: 3799.57 | H180: 2834.97
A181: 60 | C181: =C148*$L$2 -> 9318.99 | D181: 7523.35 | E181: 6811.03 | F181: 4758.34 | G181: 4025.88 | H181: 2995.03
A182: 61 | C182: =C149*$L$2 -> 10470.68 | D182: 8471.52 | E182: 7658.5 | F182: 5386.92 | G182: 4508.18 | H182: 3381.4
A183: 62 | C183: =C150*$L$2 -> 11656.29 | D183: 9419.16 | E183: 8505.44 | F183: 5981.58 | G183: 5023.34 | H183: 3767.24
A184: 63 | C184: =C151*$L$2 -> 12807.98 | D184: 10336.59 | E184: 9352.38 | F184: 6575.71 | G184: 5538.5 | H184: 4152.55
A185: 64 | C185: =C152*$L$2 -> 13993.59 | D185: 11283.7 | E185: 10232.71 | F185: 7169.31 | G185: 6051.01 | H185: 4539.98
A186: 65 | C186: =C153*$L$2 -> 14029.63 | D186: 11317.62 | E186: 10301.08 | F186: 7236.62 | G186: 6085.99 | H186: 4539.98
A187: 66 | C187: =C154*$L$2 -> 14095.35 | D187: 11317.62 | E187: 10402.84 | F187: 7268.42 | G187: 6117.26 | H187: 4539.98
A188: 67 | C188: =C155*$L$2 -> 15651.96 | D188: 12570.01 | E188: 11587.92 | F188: 8061.3 | G188: 6791.95 | H188: 5055.67
A189: 68 | C189: =C156*$L$2 -> 17212.81 | D189: 13823.46 | E189: 12740.14 | F189: 8887.04 | G189: 7469.29 | H189: 5571.36
A190: 69 | C190: =C157*$L$2 -> 18026.36 | D190: 14467.94 | E190: 13316.78 | F190: 9285.07 | G190: 7822.8 | H190: 5828.41
A191: 70 | C191: =C158*$L$2 -> 18127.59 | D191: 14502.39 | E191: 13520.3 | F191: 9383.65 | G191: 7885.87 | H191: 5859.15
A192: 71 | C192: =C159*$L$2 -> 20430.44 | D192: 16299.62 | E192: 15248.1 | F192: 10571.91 | G192: 8884.92 | H192: 6601.15
A193: 72 | C193: =C160*$L$2 -> 22701.49 | D193: 18127.59 | E193: 16942.51 | F193: 11727.31 | G193: 9850.05 | H193: 7339.44
A194: 73 | C194: =C161*$L$2 -> 24971.48 | D194: 19957.68 | E194: 18634.8 | F194: 12918.75 | G194: 10848.04 | H194: 8080.38
A195: 74 | C195: =C162*$L$2 -> 27240.94 | D195: 21753.32 | E195: 20329.74 | F195: 14105.95 | G195: 11844.97 | H195: 8821.32
A196: 75 | B196: o más | C196: =C163*$L$2 -> 29747.84 | D196: 23718.56 | E196: 22296.04 | F196: 15427.77 | G196: 12940.48 | H196: 9625.86
A197: 1 | B197: Hijo | C197: =C164*$L$2 -> 1661.55 | D197: 1490.89 | E197: 882.98 | F197: 728.22 | G197: 613.21 | H197: 453.15
A198: 2 | B198: Hijos | C198: =C165*$L$2 -> 2745.93 | D198: 2542.94 | E198: 1324.47 | F198: 1157.52 | G198: 966.72 | H198: 709.14
A199: 3 | B199: Hijos o más | C199: =C166*$L$2 -> 3999.38 | D199: 3726.96 | E199: 1899.52 | F199: 1686.46 | G199: 1416.69 | H199: 1064.24
A200: 1 | B200: Rider Comp. Maternidad | C200: =+C167*$L$2 -> 0 | D200: 119.25 | E200: 119.25 | F200: 119.25 | G200: 119.25 | H200: 119.25
A201: 1 | B201: Transplante de organos | C201: 0 | D201: 0 | E201: 0 | F201: 0 | G201: 0 | H201: 0
A203: COMPLETE (LATINAMERICA ONLY)
A204: TARIFAS ANUALES
A205: EDAD
C206: CL1 | D206: CL2 | E206: CL3 | F206: CL4 | G206: CL5 | H206: CL6
A207: 18 | B207: - 24 | C207: 4108 | D207: 2493 | E207: 1711 | F207: 1222 | G207: 864 | H207: 656
... 984 more rows
